Workbook

Sheet Pseudocrit-Comp
B1: Estimation of Pseudocritical Properties: Known Gas Compostion -- Stewart et al. Mixing Rules
B2: Based on principle of corresponding states
B4: -- Wichert and Aziz correlation correction for H2S and CO2
B5: 154 < p (psia) < 7206, 40 <T (oF) < 300, 0 < CO2 < 0.5456, 0 < H2S < 0.7385
B7: -- Casey's correlation correction for N2 and H20 -- semiempirical
B9: Physical Properties Of Gases at 14.7 psia and 60F
E11: Molecular | G11: Critical | H11: Critical
D12: Mole | E12: Weight | G12: Temp | H12: Pressure | L12: Liquid | M12: Gas | N12: Gas
B13: Rarely Used | D13: Fraction | E13: Mi | G13: Tci | H13: Pci | L13: Density | M13: Density | N13: Viscosity
B14: Component | C14: Formula | D14: yi | E14: (lbm/lbm-mol) | F14: yiMi | G14: (oR) | H14: (psia) | I14: yiTci/pci | J14: yisqrt[Tci/pci] | K14: yiTci/sqrt[pci] | L14: (lbm/ft3) | M14: (lbm/ft3) | N14: (cp)
B15: Hydrogen | C15: H2 | D15: 0 | E15: 2.109 | F15: =D15*E15 -> 0 | G15: 59.36 | H15: 187.5 | I15: =D15*G15/H15 -> 0 | J15: =D15*SQRT(G15/H15) -> 0 | K15: =D15*G15/SQRT(H15) -> 0 | L15: 4.432 | M15: 0.005312 | N15: 0.00871
B16: Helium | C16: HE2 | D16: 0 | E16: 4.003 | F16: 0 | G16: 9.34 | H16: 32.9 | I16: 0 | J16: 0 | K16: 0 | L16: 7.802 | M16: 0.01055 | N16: 0.01927
B17: Carbon monoxide | C17: CO | D17: 0 | E17: 28.013 | F17: 0 | G17: 227.16 | H17: 493.1 | I17: 0 | J17: 0 | K17: 0 | L17: 50.479 | M17: 0.07381 | N17: 0.01725
B18: Oxygen | C18: O2 | D18: 0 | E18: 31.999 | F18: 0 | G18: 278.24 | H18: 731.4 | I18: 0 | J18: 0 | K18: 0 | L18: 71.228 | M18: 0.08432 | N18: 0.02006
B19: Air | C19: mix | D19: 0 | E19: 28.963 | F19: 0 | G19: 238.36 | H19: 546.9 | I19: 0 | J19: 0 | K19: 0 | L19: 54.555 | M19: 0.07632 | N19: 0.0179
B20: Water | C20: H2O | D20: 0 | E20: 18.015 | F20: 0 | G20: 1164.85 | H20: 3200.1 | I20: 0 | J20: 0 | K20: 0 | L20: 62.336 | N20: 1.122
B21: Nitrogen | C21: N2 | D21: 0.00889 | E21: 28.01 | F21: 0.2490089 | G21: 239.26 | H21: 507.5 | I21: 0.004191175172 | J21: 0.006104059902 | K21: 0.09441779114 | L21: 49.231 | M21: 0.07382 | N21: 0.01735
B22: Hydrogen Sulfide | C22: H2S | D22: 0 | E22: 34.08 | F22: 0 | G22: 672.35 | H22: 1306 | I22: 0 | J22: 0 | K22: 0 | L22: 49.982 | M22: 0.08981 | N22: 0.0124
B23: Carbon Dioxide | C23: CO2 | D23: 0.09362 | E23: 44.01 | F23: 4.1202162 | G23: 547.58 | H23: 1071 | I23: 0.04786595668 | J23: 0.06694184688 | K23: 1.566467824 | L23: 51.016 | M23: 0.116 | N23: 0.01439
B24: Methane | C24: C1 H4 | D24: 0.78646 | E24: 16.043 | F24: 12.61717778 | G24: 343 | H24: 666.4 | I24: 0.4047955882 | J24: 0.5642300403 | K24: 10.44968658 | L24: 18.71 | M24: 0.04228 | N24: 0.01078
B25: Ethane | C25: C2 H6 | D25: 0.05798 | E25: 30.07 | F25: 1.7434586 | G25: 549.59 | H25: 706.5 | I25: 0.04510294154 | J25: 0.05113774096 | K25: 1.198839241 | L25: 22.214 | M25: 0.07924 | N25: 0.00901
B26: Propane | C26: C3 H8 | D26: 0.02872 | E26: 44.097 | F26: 1.26646584 | G26: 665.73 | H26: 616 | I26: 0.03103858052 | J26: 0.02985679207 | K26: 0.7703573094 | L26: 31.619 | N26: 0.00788
B27: Iso-Butane | C27: C4 H10 | D27: 0.00855 | E27: 58.123 | F27: 0.49695165 | G27: 734.13 | H27: 527.9 | I27: 0.01189015249 | J27: 0.01008269824 | K27: 0.2731890296 | L27: 35.104 | N27: 0.00732
B28: n-Butane | C28: C4 H10 | D28: 0.0072 | E28: 58.123 | F28: 0.4184856 | G28: 765.29 | H28: 550.6 | I28: 0.01000742463 | J28: 0.008488430793 | K28: 0.2348228915 | L28: 36.422 | N28: 0.00724
B29: Iso-Pentane | C29: C5 H12 | D29: 0.00323 | E29: 72.15 | F29: 0.2330445 | G29: 828.77 | H29: 490.4 | I29: 0.005458660481 | J29: 0.0041989848 | K29: 0.12088191 | L29: 38.96
B30: n-Pentane | C30: C5 H12 | D30: 0.00199 | E30: 72.15 | F30: 0.1435785 | G30: 845.47 | H30: 488.6 | I30: 0.003443481989 | J30: 0.002617733592 | K30: 0.07611575282 | L30: 39.36
B31: Hexane | C31: C6 H14 | D31: 0 | E31: 86.177 | F31: 0 | G31: 913.27 | H31: 436.9 | I31: 0 | J31: 0 | K31: 0 | L31: 41.4
B32: Heptanes + | C32: C7+ H16+ | D32: 0.00336 | E32: 114.2 | F32: 0.383712 | G32: =$C$41 -> 1005.252203 | H32: =$C$40 -> 375.663267 | I32: 0.008991156974 | J32: 0.005496388581 | K32: 0.174266916
D33: =SUM(D15:D32) -> 1 | F33: =SUM(F15:F32) -> 21.67209957 | I33: =SUM(I15:I32) -> 0.5727851187 | J33: =SUM(J15:J32) -> 0.7491547161 | K33: =SUM(K15:K32) -> 14.95904525
B35: Input g of C7+ : | C35: 0.707 | E35: Apparent MW: | F35: =$F$33 -> 21.67209957 | H35: T''pc | I35: =C67 -> 382.1391999 | J35: oR
E36: Apparent gG: | F36: =F35/E19 -> 0.7482684656 | H36: p''pc | I36: =C68 -> 679.9370765 | J36: =D68 -> psia
B37: CALCULATIONS
B38: 1. Estimate the pseudocritical properties of the C7+ fraction
B39: TbC7+, (oR) | C39: =(4.5579*E32^0.15178*C35^0.15427)^3 -> 697.4962232 | D39: boiling temperature of the C7+
B40: PpcC7+, (psia) | C40: =EXP(8.3634-0.0566/C35-(0.24244+2.2898/C35+0.11857/C35^2)*C39/1000+(1.4685+3.648/C35+0.47227/C35^2)*C39^2/10000000-(0.42019+1.6977/C35^2)*C39^3/10000000000) -> 375.663267 | D40: pseudocritical pressure of the C7+ fraction
B41: TpcC7+, (oR) | C41: =(341.7+811*C35)+(0.4244+0.1174*C35)*C39+(0.4669-3.2623*C35)*100000/C39 -> 1005.252203 | D41: pseudocritical temperature of the C7+ fraction
B43: 2. Determine correction factors Fj, xj, and xk for C7+ using Sutton's method
B44: Fj | C44: =1/3*(D32*C41/C40)+2/3*(D32^2*C41/C40) -> 0.003017192516
B45: xj | C45: =0.6081*C44+1.1325*C44^2-14.004*C44*D32+64.434*C44*D32^2 -> 0.001705289949
B46: xk | C46: =(C41/SQRT(C40))*(0.3129*D32-4.8156*D32^2+27.375*D32^3) -> 0.05176226449
B48: 3. Calculate the parameters J and K (from table)
B49: J | C49: =1/3*I33+2/3*J33^2 -> 0.5650835653
B50: K | C50: =K33 -> 14.95904525
B52: 4. Correct parameters J and K for the C7+ fraction
B53: J' | C53: =C49-C45 -> 0.5633782754
B54: K' | C54: =C50-C46 -> 14.90728298
B56: 5. Calculate pseudocritical temperature and pressure
B57: Tpc | C57: =C54^2/C53 -> 394.4544822 | D57: oR
B58: Ppc | C58: =C57/C53 -> 700.1591994 | D58: psia
B60: 6. Corrections for H2S, CO2, N2, and H2O
B61: x | C61: =120*((D22+D23)^0.9-(D22+D23)^1.6)+15*(D22^0.5-D22^4) -> 11.52431259
B62: T'pc | C62: =C57-C61 -> 382.9301696 | D62: oR | E62: Weichert and Aziz Correction
B63: p'pc | C63: =C58*C62/(C57+D22*(1-D22)*C61) -> 679.7034717 | D63: psia
B64: Tpc,cor | C64: =-246.1*D21+400*D20 -> -2.187829 | D64: oR
B65: ppc,cor | C65: =-162*D21+1270*D20 -> -1.44018 | D65: psia
B67: T''pc | C67: =(C62-227.2*D21-1165*D20)/(1-D21-D20)+C64 -> 382.1391999 | D67: oR | E67: Casey correction -- final
B68: p''pc | C68: =(C63-493.1*D21-3200*D20)/(1-D21-D20)+C65 -> 679.9370765 | D68: psia

Sheet Pseudocrit-SG
B1: Estimation of Pseudocritical Properties: Known Gas Gravity -- Sutton's Correlation
B2: Based on data from 264 gas samples -- a larger database than Standing's
B4: -- Wichert and Aziz correlation correction for H2S and CO2
B5: 154 < p (psia) < 7206, 40 <T (oF) < 300, 0 < CO2 < 0.5456, 0 < H2S < 0.7385
B7: -- Casey's correlation correction for N2 and H20 -- semiempirical, i.e. better than no correction
B9: No H2S, < 0.12 CO2, < 0.03 N2, 0.57 < gh < 1.68 | K9: H2S, > 0.12 CO2, > 0.03 N2, 0.57 < gh < 1.68
B10: A. Inputs for Dry Gas, gh = gg : | K10: A. Input for Dry Gas, gw = gg if separator gas gravity is being used
K11: For Wet Gas, use gw from one of recombination calculations below:
C12: gh | D12: 0.584 | L12: gw | M12: 0.75
L13: yH2S | M13: 0 | N13: mole fraction H2S
C14: yCO2 | D14: 0.028 | E14: mole fraction CO2 | L14: yCO2 | M14: 0.06 | N14: mole fraction CO2
C15: yN2 | D15: 0 | E15: mole fraction N2 | L15: yN2 | M15: 0 | N15: mole fraction N2
C16: yH2O | D16: 0 | E16: mole fraction H2O | J16: OR | L16: yH2O | M16: 0 | N16: mole fraction H2O
C18: Calculations: | L18: Calculations:
L19: gh | M19: =(M12-1.1767*M13-1.5196*M14-0.9672*M15-0.622*M16)/(1-M13-M14-M15-M16) -> 0.7008765957
C20: ppch | D20: =756.8-131*D12-3.6*D12^2 -> 679.0681984 | E20: psia | L20: ppch | M20: =756.8-131*M19-3.6*M19^2 -> 663.2167451 | N20: psia
C21: Tpch | D21: =169.2+349.5*D12-74*D12^2 -> 348.069856 | E21: oR | L21: Tpch | M21: =169.2+349.5*M19-74*M19^2 -> 377.805498 | N21: oR
C22: ppc | D22: =(1-D13-D14-D15-D16)*D20+1306*D13+1071*D14+493.1*D15+3200.1*D16 -> 690.0422888 | E22: psia | L22: ppc | M22: =(1-M13-M14-M15-M16)*M20+1306*M13+1071*M14+493.1*M15+3200.1*M16 -> 687.6837404 | N22: psia
C23: Tpc | D23: =(1-D13-D14-D15-D16)*D21+672.35*D13+547.58*D14+227.16*D15+1164.9*D16 -> 353.65614 | E23: oR | L23: Tpc | M23: =(1-M13-M14-M15-M16)*M21+672.35*M13+547.58*M14+227.16*M15+1164.9*M16 -> 387.9919681 | N23: oR
C24: x | D24: =120*((D13+D14)^0.9-(D13+D14)^1.6)+15*(D13^0.5-D13^4) -> 4.411007858 | L24: x | M24: =120*((M13+M14)^0.9-(M13+M14)^1.6)+15*(M13^0.5-M13^4) -> 8.208180479
C25: T'pc | D25: =D23-D24 -> 349.2451322 | E25: oR | F25: Weichert and Aziz Correction | L25: T'pc | M25: =M23-M24 -> 379.7837877 | N25: oR | O25: Weichert and Aziz Correction
C26: p'pc | D26: =D22*D25/(D23+D13*(1-D13)*D24) -> 681.4356746 | E26: psia | L26: p'pc | M26: =M22*M25/(M23+M13*(1-M13)*M24) -> 673.135418 | N26: psia
C27: Tpc,cor | D27: =-246.1*D15+400*D16 -> 0 | E27: oR | L27: Tpc,cor | M27: =-246.1*M15+400*M16 -> 0 | N27: oR
C28: ppc,cor | D28: =-162*D15+1270*D16 -> 0 | E28: psia | L28: ppc,cor | M28: =-162*M15+1270*M16 -> 0 | N28: psia
C30: T''pc | D30: =(D25-227.2*D15-1165*D16)/(1-D15-D16)+D27 -> 349.2451322 | E30: oR | F30: Casey correction -- final | L30: T''pc | M30: =(M25-227.2*M15-1165*M16)/(1-M15-M16)+M27 -> 379.7837877 | N30: oR | O30: Casey correction -- final
C31: p''pc | D31: =(D26-493.1*D15-3200*D16)/(1-D15-D16)+D28 -> 681.4356746 | E31: psia | L31: p''pc | M31: =(M26-493.1*M15-3200*M16)/(1-M15-M16)+M28 -> 673.135418 | N31: psia
B34: Wet Gas
B35: B. Inputs for Wet Gas and Condensate, Estimate gw by Recombination Calculations
B36: then set gw = gh and use above equations:
B38: i. Input : for two or three-stage separation (data usually not available)
B39: for two-stage set R3 and g3 = 0
C40: R1 | D40: 7040 | E40: primary high-pressure separator GLR, scf/STB
C41: R2 | D41: 510 | E41: secondary low-pressure separator GLR, scf/STB
C42: R3 | D42: 120 | E42: stock-tank GLR, scf/STB
C43: g1 | D43: 0.712 | E43: specific gravity of primary-separator gas
C44: g2 | D44: 1.02 | E44: specific gravity of secondary-separator gas
C45: g3 | D45: 1.55 | E45: specific gravity of stock-tank gas
C46: gO | D46: 0.755 | E46: specific gravity of liquid hydrocarbons
C47: gAPI | D47: 55.9 | E47: API gravity of liquid hydrocarbons
D49: Given: gAPI | E49: 55.8 | G49: Given: go | H49: 0.755
D50: Calc: go | E50: =141.5/(131.5+E49) -> 0.755472504 | G50: Calc: gAPI | H50: =141.5/H49-131.5 -> 55.91721854
C52: Calculations:
C54: Mo | D54: =42.43*D46/(1.008-D46) -> 126.61917 | E54: molecular weight of stock-tank liquid
C55: gw | D55: =(D40*D43+4602*D46+D41*D44+D42*D45)/(D40+(133316*D46/D54)+D41+D42) -> 1.086032402
B58: ii. Correlation based on more readily available data
C60: Three-Stage Separation:
C62: R1 | D62: 7040 | E62: primary high-pressure separator GLR, scf/STB
C63: ps1 | D63: 700 | E63: primary separator pressure, psia
C64: Ts1 | D64: 90 | E64: primary separator temperature, oF
C65: Ts2 | E65: secondary separator temperature, oF
C66: g1 | D66: 0.712 | E66: specific gravity of primary-separator gas
C67: gO | D67: 0.755 | E67: specific gravity of liquid hydrocarbons
C68: gAPI | D68: 55.8 | E68: API gravity of liquid hydrocarbons
C70: Calculations:
C72: Gpa | D72: =2.9922*(D63-14.65)^0.9705*D66^6.8049*D68^1.0792*D64^-1.196*D65^0.55367 -> 0 | E72: additional gas production, scf/STB
C73: Veq | D73: =535.92*2.6231*D63*0.79318*D66^4.6612*D68^1.2094*D64^-0.84911*D65^0.26987 -> 0 | E73: volume of secondary-separator gas and stock-tank gas plus
E74: volume that would be occupied by 1 bbl of stock-tank liquid
E75: if it were gas, scf/STB
C76: gw | D76: =(D62*D66+4602*D67+D72)/(D62+D73) -> 1.205538352
C78: Two-Stage Separation:
C80: R1 | D80: 7040 | E80: primary high-pressure separator GLR, scf/STB
C81: ps1 | D81: 700 | E81: primary separator pressure, psia
C82: Ts1 | D82: 90 | E82: primary separator temperature, oF
C83: g1 | D83: 0.712 | E83: specific gravity of primary-separator gas
C84: gO | D84: 0.755 | E84: specific gravity of liquid hydrocarbons
C85: gAPI | D85: 55.8 | E85: API gravity of liquid hydrocarbons
C87: Calculations:
C89: Gpa | D89: =1.4599*(D81-14.65)^1.3394*D83^7.0943*D85^1.1436*D82^-0.93446 -> 1223.157643 | E89: additional gas production, scf/STB
C90: Veq | D90: =635.53+0.36182*D81^1.0544*D83^5.0831*D85^1.5812*D82^-0.7913 -> 1692.082048 | E90: volume of secondary-separator gas and stock-tank gas plus
E91: volume that would be occupied by 1 bbl of stock-tank liquid
E92: if it were gas, scf/STB
C93: gw | D93: =(D80*D83+4602*D84+D89)/(D80+D90) -> 1.112008292

Sheet Gas Prop
A1: Gas Properties, Pseudo Pressure, and Pseudo Pressure with Pressure-Dependent Permeability
A2: Input data (blue) and select a button to calculate. Pseudo-critical properties are calculated unless user inputs their values - required for gas composition and wet gas.
A3: gg | B3: 0.593 | C3: gas gravity
A4: yH2S | B4: 0 | C4: mole fraction H2S, e.g. 3.2% = 0.032
A5: yCO2 | B5: 0.04 | C5: mole fraction CO2 | I5: (Press if Input mol fractions)
A6: yN2 | B6: 0 | C6: mole fraction N2
A7: yH2O | B7: 0 | C7: mole fraction H2O
A9: Temp | B9: 330 | C9: oF - Reservoir Temp | I9: (Press if Input Tpc and Ppc)
A11: Tpc | B11: 342.5836256 | C11: oR | D11: Input or Leave Alone
A12: ppc | B12: 686.705069 | C12: psia | D12: (program calculates)
A13: Pi | B13: 10147 | C13: psia
A14: ki | B14: 0.001 | C14: md
A15: g | B15: 0.00042 | C15: permeability modulus
A18: p | C18: Bg | D18: Bg | E18: cg | F18: rg | G18: mg | H18: k | I18: y | J18: y k(p)
A19: (psia) | B19: Z | C19: (RB/mcf) | D19: (ft3/scf) | E19: (psia-1) | F19: (lbm/ft3) | G19: (cp) | H19: (md) | I19: (psia2/cp) | J19: (psia2/cp)
A20: 15 | B20: 0.9995381973 | C20: 264.2645722 | D20: 1.484514131 | E20: 0.06666666667 | F20: 0.03041467849 | G20: 0.01612160829 | H20: 1.418684716e-05 | I20: 0 | J20: 0
A21: 16 | B21: 0.9995075411 | C21: 247.7404379 | D21: 1.391689313 | E21: 0.06253067126 | F21: 0.03244331877 | G21: 0.01612182774 | H21: 1.419280689e-05 | I21: 992.9322827 | J21: 14.09249614
A22: 17 | B22: 0.9994769014 | C22: 233.1603233 | D22: 1.309785083 | E22: 0.05885418524 | F22: 0.03447208293 | G22: 0.01612205227 | H22: 1.419876912e-05 | I22: 3040.872764 | J22: 43.16481011
A23: 18 | B23: 0.9994462779 | C23: 220.2002249 | D23: 1.236981343 | E23: 0.05558619595 | F23: 0.03650097089 | G23: 0.01612228168 | H23: 1.420473385e-05 | I23: 5212.9668 | J23: 74.01253495
A24: 19 | B24: 0.9994156709 | C24: 208.6043509 | D24: 1.171841175 | E24: 0.0526622039 | F24: 0.03852998255 | G24: 0.0161225158 | H24: 1.421070109e-05 | I24: 7509.217785 | J24: 106.6372054
A25: 20 | B25: 0.9993850802 | C25: 198.1680675 | D25: 1.113215041 | E25: 0.0500306095 | F25: 0.04055911782 | G25: 0.01612275447 | H25: 1.421667084e-05 | I25: 9929.629026 | J25: 141.040356
A26: 21 | B26: 0.9993545059 | C26: 188.725719 | D26: 1.060172366 | E26: 0.04764964167 | F26: 0.04258837662 | G26: 0.01612299754 | H26: 1.42226431e-05 | I26: 12474.20374 | J26: 177.2235209
A27: 22 | B27: 0.999323948 | C27: 180.1417688 | D27: 1.011951769 | E27: 0.04548512404 | F27: 0.04461775886 | G27: 0.01612324488 | H27: 1.422861786e-05 | I27: 15142.94505 | J27: 215.1882342
A28: 23 | B28: 0.9992934064 | C28: 172.3042518 | D28: 0.967924283 | E28: 0.04350882399 | F28: 0.04664726445 | G28: 0.01612349638 | H28: 1.423459514e-05 | I28: 17935.85601 | J28: 254.9360295
A29: 24 | B29: 0.9992628813 | C29: 165.1198639 | D29: 0.9275657696 | E29: 0.04169721431 | F29: 0.04867689331 | G29: 0.0161237519 | H29: 1.424057492e-05 | I29: 20852.93958 | J29: 296.4684405
A30: 25 | B30: 0.9992323726 | C30: 158.5102297 | D30: 0.8904359519 | E30: 0.04003053217 | F30: 0.05070664533 | G30: 0.01612401136 | H30: 1.424655722e-05 | I30: 23894.19865 | J30: 339.7870007
A31: 26 | B31: 0.9992018803 | C31: 152.4090314 | D31: 0.856162288 | E31: 0.03849205514 | F31: 0.05273652044 | G31: 0.01612427464 | H31: 1.425254203e-05 | I31: 27059.63603 | J31: 384.8932435
A32: 27 | B32: 0.9991714043 | C32: 146.7597761 | D32: 0.8244274276 | E32: 0.03706753823 | F32: 0.05476651854 | G32: 0.01612454166 | H32: 1.425852936e-05 | I32: 30349.25445 | J32: 431.7887022
A33: 28 | B33: 0.9991409448 | C33: 141.5140414 | D33: 0.794959356 | E33: 0.03574477141 | F33: 0.05679663955 | G33: 0.01612481233 | H33: 1.42645192e-05 | I33: 33763.05656 | J33: 480.4749099
A34: 29 | B34: 0.9991105018 | C34: 136.6300837 | D34: 0.7675235779 | E34: 0.03451322881 | F34: 0.05882688337 | G34: 0.01612508657 | H34: 1.427051155e-05 | I34: 37301.04496 | J34: 530.9533999
A35: 30 | B35: 0.9990800751 | C35: 132.0717254 | D35: 0.7419168638 | E35: 0.03336378801 | F35: 0.06085724992 | G35: 0.01612536429 | H35: 1.427650643e-05 | I35: 40963.22217 | J35: 583.2257052
A36: 31 | B36: 0.9990496649 | C36: 127.8074568 | D36: 0.7179622075 | E36: 0.03228850368 | F36: 0.06288773911 | G36: 0.01612564543 | H36: 1.428250382e-05 | I36: 44749.59062 | J36: 637.2933591
A37: 32 | B37: 0.9990192711 | C37: 123.809707 | D37: 0.6955047288 | E37: 0.03128042364 | F37: 0.06491835085 | G37: 0.01612592991 | H37: 1.428850373e-05 | I37: 48660.15269 | J37: 693.1578947
A38: 33 | B38: 0.9989888937 | C38: 120.0542471 | D38: 0.6744083204 | E38: 0.03033343841 | F38: 0.06694908505 | G38: 0.01612621767 | H38: 1.429450616e-05 | I38: 52694.91071 | J38: 750.8208452
A39: 34 | B39: 0.9989585328 | C39: 116.5196985 | D39: 0.654552888 | E39: 0.02944215728 | F39: 0.06897994161 | G39: 0.01612650865 | H39: 1.430051112e-05 | I39: 56853.86691 | J39: 810.2837438
A40: 35 | B40: 0.9989281883 | C40: 113.187126 | D40: 0.6358320623 | E40: 0.02860180561 | F40: 0.07101092046 | G40: 0.01612680279 | H40: 1.430651859e-05 | I40: 61137.02347 | J40: 871.5481239
A41: 36 | B41: 0.9988978603 | C41: 110.0396982 | D41: 0.6181512925 | E41: 0.02780813927 | F41: 0.0730420215 | G41: 0.01612710003 | H41: 1.431252859e-05 | I41: 65544.38252 | J41: 934.6155188
A42: 37 | B42: 0.9988675487 | C42: 107.0624034 | D42: 0.60142625 | E42: 0.02705737296 | F42: 0.07507324464 | G42: 0.01612740032 | H42: 1.431854112e-05 | I42: 70075.94611 | J42: 999.487462
A43: 38 | B43: 0.9988372536 | C43: 104.24181 | D43: 0.5855814825 | E43: 0.02634611985 | F43: 0.07710458979 | G43: 0.0161277036 | H43: 1.432455617e-05 | I43: 74731.71623 | J43: 1066.165487
A44: 39 | B44: 0.9988069749 | C44: 101.5658641 | D44: 0.5705492766 | E44: 0.02567134045 | F44: 0.07913605687 | G44: 0.01612800983 | H44: 1.433057374e-05 | I44: 79511.69483 | J44: 1134.651128
A45: 40 | B45: 0.9987767128 | C45: 99.02371719 | D45: 0.5562686902 | E45: 0.02503029924 | F45: 0.08116764578 | G45: 0.01612831896 | H45: 1.433659385e-05 | I45: 84415.88376 | J45: 1204.945918
A46: 41 | B46: 0.9987464671 | C46: 96.605579 | D46: 0.5426847267 | E46: 0.02442052757 | F46: 0.08319935642 | G46: 0.01612863094 | H46: 1.434261648e-05 | I46: 89444.28485 | J46: 1277.051391
A47: 42 | B47: 0.9987162378 | C47: 94.30259181 | D47: 0.5297476273 | E47: 0.02383979189 | F47: 0.08523118873 | G47: 0.01612894574 | H47: 1.434864165e-05 | I47: 94596.89987 | J47: 1350.969082
A48: 43 | B48: 0.9986860251 | C48: 92.10672182 | D48: 0.517412262 | E48: 0.02328606644 | F48: 0.08726314259 | G48: 0.0161292633 | H48: 1.435466934e-05 | I48: 99873.73049 | J48: 1426.700524
A49: 44 | B49: 0.9986558288 | C49: 90.01066559 | D49: 0.5056376035 | E49: 0.02275750962 | F49: 0.08929521793 | G49: 0.01612958359 | H49: 1.436069957e-05 | I49: 105274.7784 | J49: 1504.247253
A50: 45 | B50: 0.9986256491 | C50: 88.00776887 | D50: 0.4943862713 | E50: 0.02225244352 | F50: 0.09132741465 | G50: 0.01612990657 | H50: 1.436673233e-05 | I50: 110800.0451 | J50: 1583.610802
A51: 46 | B51: 0.9985954858 | C51: 86.09195604 | D51: 0.4836241355 | E51: 0.02176933612 | F51: 0.09335973266 | G51: 0.0161302322 | H51: 1.437276763e-05 | I51: 116449.5323 | J51: 1664.792707
A52: 47 | B52: 0.9985653391 | C52: 84.25766855 | D52: 0.4733199707 | E52: 0.02130678582 | F52: 0.09539217188 | G52: 0.01613056045 | H52: 1.437880546e-05 | I52: 122223.2412 | J52: 1747.794503
A53: 48 | B53: 0.9985352088 | C53: 82.49981106 | D53: 0.4634451538 | E53: 0.02086350779 | F53: 0.09742473221 | G53: 0.01613089127 | H53: 1.438484582e-05 | I53: 128121.1735 | J53: 1832.617724
A54: 49 | B54: 0.9985050951 | C54: 80.8137042 | D54: 0.4539733981 | E54: 0.02043832209 | F54: 0.09945741356 | G54: 0.01613122465 | H54: 1.439088873e-05 | I54: 134143.3305 | J54: 1919.263906
A55: 50 | B55: 0.9984749978 | C55: 79.19504293 | D55: 0.44488052 | E55: 0.0200301432 | F55: 0.1014902158 | G55: 0.01613156055 | H55: 1.439693417e-05 | I55: 140289.7134 | J55: 2007.734586
A56: 51 | B56: 0.9984449171 | C56: 77.63985985 | D56: 0.4361442326 | E56: 0.0196379707 | F56: 0.103523139 | G56: 0.01613189893 | H56: 1.440298215e-05 | I56: 146560.3236 | J56: 2098.031298
A57: 52 | B57: 0.9984148529 | C57: 76.14449277 | D57: 0.4277439633 | E57: 0.01926088115 | F57: 0.1055561828 | G57: 0.01613223976 | H57: 1.440903267e-05 | I57: 152955.1622 | J57: 2190.155579
A58: 53 | B58: 0.9983848053 | C58: 74.70555586 | D58: 0.4196606923 | E58: 0.01889802079 | F58: 0.1075893474 | G58: 0.01613258302 | H58: 1.441508574e-05 | I58: 159474.2305 | J58: 2284.108965
A59: 54 | B59: 0.9983547742 | C59: 73.31991414 | D59: 0.4118768085 | E59: 0.01854859913 | F59: 0.1096226325 | G59: 0.01613292867 | H59: 1.442114135e-05 | I59: 166117.5296 | J59: 2379.892993
A60: 55 | B60: 0.9983247596 | C60: 71.98466057 | D60: 0.4043759817 | E60: 0.01821188313 | F60: 0.111656038 | G60: 0.0161332767 | H60: 1.44271995e-05 | I60: 172885.0605 | J60: 2477.5092
A61: 56 | B61: 0.9982947616 | C61: 70.69709581 | D61: 0.3971430482 | E61: 0.01788719214 | F61: 0.113689564 | G61: 0.01613362707 | H61: 1.443326019e-05 | I61: 179776.8242 | J61: 2576.959123
A62: 57 | B62: 0.9982647801 | C62: 69.45470991 | D62: 0.3901639083 | E62: 0.01757389325 | F62: 0.1157232103 | G62: 0.01613397975 | H62: 1.443932344e-05 | I62: 186792.8217 | J62: 2678.244299
A63: 58 | B63: 0.9982348151 | C63: 68.25516603 | D63: 0.3834254347 | E63: 0.01727139724 | F63: 0.1177569768 | G63: 0.01613433473 | H63: 1.444538923e-05 | I63: 193933.054 | J63: 2781.366266
A64: 59 | B64: 0.9982048667 | C64: 67.09628577 | D64: 0.3769153902 | E64: 0.01697915478 | F64: 0.1197908633 | G64: 0.01613469197 | H64: 1.445145756e-05 | I64: 201197.5219 | J64: 2886.326563
A65: 60 | B65: 0.9981749349 | C65: 65.97603595 | D65: 0.3706223533 | E65: 0.01669665321 | F65: 0.12182487 | G65: 0.01613505146 | H65: 1.445752845e-05 | I65: 208586.2262 | J65: 2993.126726
A66: 61 | B66: 0.9981450197 | C66: 64.89251671 | D66: 0.3645356516 | E66: 0.01642341347 | F66: 0.1238589965 | G66: 0.01613541317 | H66: 1.446360189e-05 | I66: 216099.1677 | J66: 3101.768295
A67: 62 | B67: 0.998115121 | C67: 63.84395076 | D67: 0.3586453011 | E67: 0.0161589874 | F67: 0.1258932429 | G67: 0.01613577708 | H67: 1.446967788e-05 | I67: 223736.3472 | J67: 3212.252809
A68: 63 | B68: 0.9980852389 | C68: 62.82867366 | D68: 0.3529419516 | E68: 0.01590295531 | F68: 0.127927609 | G68: 0.01613614316 | H68: 1.447575642e-05 | I68: 231497.7653 | J68: 3324.581807
A69: 64 | B69: 0.9980553734 | C69: 61.84512499 | D69: 0.3474168376 | E69: 0.01565492372 | F69: 0.1299620948 | G69: 0.0161365114 | H69: 1.448183751e-05 | I69: 239383.4227 | J69: 3438.756828
A70: 65 | B70: 0.9980255244 | C70: 60.89184038 | D70: 0.3420617328 | E70: 0.01541452338 | F70: 0.1319967002 | G70: 0.01613688177 | H70: 1.448792116e-05 | I70: 247393.32 | J70: 3554.779413
A71: 66 | B71: 0.9979956921 | C71: 59.96744418 | D71: 0.3368689095 | E71: 0.01518140742 | F71: 0.1340314251 | G71: 0.01613725425 | H71: 1.449400737e-05 | I71: 255527.4577 | J71: 3672.651101
A72: 67 | B72: 0.9979658763 | C72: 59.07064287 | D72: 0.3318311014 | E72: 0.01495524967 | F72: 0.1360662693 | G72: 0.01613762883 | H72: 1.450009613e-05 | I72: 263785.8363 | J72: 3792.373432
A73: 68 | B73: 0.9979360771 | C73: 58.20021904 | D73: 0.3269414695 | E73: 0.01473574315 | F73: 0.1381012328 | G73: 0.01613800549 | H73: 1.450618745e-05 | I73: 272168.4564 | J73: 3913.947948
A74: 69 | B74: 0.9979062946 | C74: 57.35502584 | D74: 0.3221935715 | E74: 0.01452259867 | F74: 0.1401363156 | G74: 0.0161383842 | H74: 1.451228133e-05 | I74: 280675.3182 | J74: 4037.37619
A75: 70 | B75: 0.9978765286 | C75: 56.53398196 | D75: 0.3175813329 | E75: 0.01431554358 | F75: 0.1421715174 | G75: 0.01613876495 | H75: 1.451837777e-05 | I75: 289306.4222 | J75: 4162.659699
A76: 71 | B76: 0.9978467793 | C76: 55.736067 | D76: 0.3130990218 | E76: 0.01411432058 | F76: 0.1442068383 | G76: 0.01613914772 | H76: 1.452447676e-05 | I76: 298061.7688 | J76: 4289.800017
A77: 72 | B77: 0.9978170466 | C77: 54.96031727 | D77: 0.3087412245 | E77: 0.01391868666 | F77: 0.1462422781 | G77: 0.0161395325 | H77: 1.453057833e-05 | I77: 306941.3582 | J77: 4418.798685
A78: 73 | B78: 0.9977873305 | C78: 54.20582185 | D78: 0.3045028239 | E78: 0.01372841214 | F78: 0.1482778367 | G78: 0.01613991926 | H78: 1.453668245e-05 | I78: 315945.1907 | J78: 4549.657248
A79: 74 | B79: 0.997757631 | C79: 53.47171909 | D79: 0.3003789798 | E79: 0.01354327974 | F79: 0.1503135141 | G79: 0.01614030798 | H79: 1.454278914e-05 | I79: 325073.2664 | J79: 4682.377247
A80: 75 | B80: 0.9977279481 | C80: 52.75719329 | D80: 0.2963651097 | E80: 0.01336308378 | F80: 0.1523493101 | G80: 0.01614069867 | H80: 1.454889839e-05 | I80: 334325.5855 | J80: 4816.960225
A81: 76 | B81: 0.9976982819 | C81: 52.06147166 | D81: 0.2924568727 | E81: 0.01318762939 | F81: 0.1543852247 | G81: 0.01614109129 | H81: 1.455501021e-05 | I81: 343702.1482 | J81: 4953.407727
A82: 77 | B82: 0.9976686323 | C82: 51.38382159 | D82: 0.2886501531 | E82: 0.01301673185 | F82: 0.1564212577 | G82: 0.01614148583 | H82: 1.45611246e-05 | I82: 353202.9546 | J82: 5091.721296
A83: 78 | B83: 0.9976389994 | C83: 50.723548 | D83: 0.2849410465 | E83: 0.01285021588 | F83: 0.1584574092 | G83: 0.01614188227 | H83: 1.456724156e-05 | I83: 362828.0046 | J83: 5231.902477
A84: 79 | B84: 0.9976093831 | C84: 50.07999103 | D84: 0.281325846 | E84: 0.0126879151 | F84: 0.1604936789 | G84: 0.01614228061 | H84: 1.457336109e-05 | I84: 372577.2983 | J84: 5373.952814
A85: 80 | B85: 0.9975797835 | C85: 49.45252382 | D85: 0.2778010302 | E85: 0.01252967144 | F85: 0.1625300668 | G85: 0.01614268082 | H85: 1.457948318e-05 | I85: 382450.8356 | J85: 5517.873852
A86: 81 | B86: 0.9975502005 | C86: 48.84055043 | D86: 0.2743632514 | E86: 0.01237533464 | F86: 0.1645665728 | G86: 0.0161430829 | H86: 1.458560785e-05 | I86: 392448.6165 | J86: 5663.667137
A87: 82 | B87: 0.9975206342 | C87: 48.24350404 | D87: 0.2710093255 | E87: 0.01222476175 | F87: 0.1666031968 | G87: 0.01614348683 | H87: 1.459173509e-05 | I87: 402570.6408 | J87: 5811.334215
A88: 83 | B88: 0.9974910846 | C88: 47.6608451 | D88: 0.2677362215 | E88: 0.01207781674 | F88: 0.1686399388 | G88: 0.01614389259 | H88: 1.459786491e-05 | I88: 412816.9084 | J88: 5960.876631
A89: 84 | B89: 0.9974615516 | C89: 47.09205978 | D89: 0.2645410529 | E89: 0.01193437004 | F89: 0.1706767986 | G89: 0.01614430017 | H89: 1.46039973e-05 | I89: 423187.419 | J89: 6112.295933
A90: 85 | B90: 0.9974320353 | C90: 46.53665842 | D90: 0.2614210692 | E90: 0.01179429817 | F90: 0.172713776 | G90: 0.01614470956 | H90: 1.461013227e-05 | I90: 433682.1725 | J90: 6265.593668
A91: 86 | B91: 0.9974025357 | C91: 45.99417414 | D91: 0.2583736476 | E91: 0.01165748342 | F91: 0.1747508712 | G91: 0.01614512074 | H91: 1.461626981e-05 | I91: 444301.1685 | J91: 6420.771382
A92: 87 | B92: 0.9973730527 | C92: 45.46416152 | D92: 0.2553962859 | E92: 0.01152381346 | F92: 0.1767880839 | G92: 0.01614553371 | H92: 1.462240994e-05 | I92: 455044.4068 | J92: 6577.830624
A93: 88 | B93: 0.9973435865 | C93: 44.9461954 | D93: 0.2524865957 | E93: 0.01139318109 | F93: 0.178825414 | G93: 0.01614594845 | H93: 1.462855264e-05 | I93: 465911.8869 | J93: 6736.772943
A94: 89 | B94: 0.9973141369 | C94: 44.43986971 | D94: 0.249642296 | E94: 0.01126548392 | F94: 0.1808628615 | G94: 0.01614636494 | H94: 1.463469792e-05 | I94: 476903.6086 | J94: 6897.599885
A95: 90 | B95: 0.9972847041 | C95: 43.94479644 | D95: 0.2468612071 | E95: 0.0111406241 | F95: 0.1829004262 | G95: 0.01614678319 | H95: 1.464084578e-05 | I95: 488019.5712 | J95: 7060.313002
A96: 91 | B96: 0.9972552879 | C96: 43.46060463 | D96: 0.2441412451 | E96: 0.0110185081 | F96: 0.1849381082 | G96: 0.01614720316 | H96: 1.464699623e-05 | I96: 499259.7745 | J96: 7224.913841
A97: 92 | B97: 0.9972258885 | C97: 42.98693944 | D97: 0.2414804168 | E97: 0.01089904644 | F97: 0.1869759072 | G97: 0.01614762486 | H97: 1.465314926e-05 | I97: 510624.2178 | J97: 7391.403954
A98: 93 | B98: 0.9971965058 | C98: 42.52346132 | D98: 0.2388768146 | E98: 0.01078215351 | F98: 0.1890138232 | G98: 0.01614804827 | H98: 1.465930488e-05 | I98: 522112.9007 | J98: 7559.78489
A99: 94 | B99: 0.9971671398 | C99: 42.06984514 | D99: 0.2363286121 | E99: 0.01066774731 | F99: 0.1910518561 | G99: 0.01614847338 | H99: 1.466546308e-05 | I99: 533725.8225 | J99: 7730.0582
A100: 95 | B100: 0.9971377905 | C100: 41.62577947 | D100: 0.23383406 | E100: 0.01055574933 | F100: 0.1930900058 | G100: 0.01614890018 | H100: 1.467162387e-05 | I100: 545462.9826 | J100: 7902.225434
A101: 96 | B101: 0.9971084579 | C101: 41.19096586 | D101: 0.2313914815 | E101: 0.0104460843 | F101: 0.1951282722 | G101: 0.01614932866 | H101: 1.467778724e-05 | I101: 557324.3804 | J101: 8076.288146
A102: 97 | B102: 0.9970791421 | C102: 40.76511816 | D102: 0.2289992693 | E102: 0.01033868007 | F102: 0.1971666553 | G102: 0.01614975881 | H102: 1.468395321e-05 | I102: 569310.0151 | J102: 8252.247886
A103: 98 | B103: 0.9970498429 | C103: 40.34796191 | D103: 0.2266558816 | E103: 0.01023346743 | F103: 0.1992051548 | G103: 0.01615019061 | H103: 1.469012176e-05 | I103: 581419.8862 | J103: 8430.106207
A104: 99 | B104: 0.9970205606 | C104: 39.93923373 | D104: 0.2243598389 | E104: 0.01013037997 | F104: 0.2012437708 | G104: 0.01615062406 | H104: 1.469629291e-05 | I104: 593653.9927 | J104: 8609.864662
A105: 100 | B105: 0.996991295 | C105: 39.53868078 | D105: 0.2221097207 | E105: 0.01002935394 | F105: 0.2032825032 | G105: 0.01615105915 | H105: 1.470246665e-05 | I105: 606012.3338 | J105: 8791.524804
A106: 101 | B106: 0.9969620461 | C106: 39.14606022 | D106: 0.219904163 | E106: 0.009930328103 | F106: 0.2053213517 | G106: 0.01615149587 | H106: 1.470864298e-05 | I106: 618494.9089 | J106: 8975.088187
A107: 102 | B107: 0.996932814 | C107: 38.76113876 | D107: 0.2177418552 | E107: 0.009833243629 | F107: 0.2073603165 | G107: 0.0161519342 | H107: 1.471482191e-05 | I107: 631101.7169 | J107: 9160.556366
A108: 103 | B108: 0.9969035986 | C108: 38.38369215 | D108: 0.2156215376 | E108: 0.009738043975 | F108: 0.2093993972 | G108: 0.01615237415 | H108: 1.472100343e-05 | I108: 643832.7569 | J108: 9347.930893
A109: 104 | B109: 0.9968744 | C109: 38.01350476 | D109: 0.2135419989 | E109: 0.009644674771 | F109: 0.211438594 | G109: 0.01615281569 | H109: 1.472718755e-05 | I109: 656688.0281 | J109: 9537.213326
A110: 105 | B110: 0.9968452181 | C110: 37.6503692 | D110: 0.211502074 | E110: 0.009553083719 | F110: 0.2134779066 | G110: 0.01615325882 | H110: 1.473337427e-05 | I110: 669667.5294 | J110: 9728.405218
A111: 106 | B111: 0.9968160531 | C111: 37.29408588 | D111: 0.2095006418 | E111: 0.009463220492 | F111: 0.215517335 | G111: 0.01615370353 | H111: 1.473956359e-05 | I111: 682771.2598 | J111: 9921.508127
A112: 107 | B112: 0.9967869048 | C112: 36.94446268 | D112: 0.207536623 | E112: 0.009375036647 | F112: 0.2175568791 | G112: 0.01615414982 | H112: 1.47457555e-05 | I112: 695999.2184 | J112: 10116.52361
A113: 108 | B113: 0.9967577733 | C113: 36.6013146 | D113: 0.2056089784 | E113: 0.009288485535 | F113: 0.2195965387 | G113: 0.01615459767 | H113: 1.475195002e-05 | I113: 709351.4039 | J113: 10313.45322
A114: 109 | B114: 0.9967286585 | C114: 36.26446343 | D114: 0.2037167069 | E114: 0.009203522217 | F114: 0.2216363139 | G114: 0.01615504707 | H114: 1.475814714e-05 | I114: 722827.8152 | J114: 10512.29852
A115: 110 | B115: 0.9966995606 | C115: 35.93373743 | D115: 0.2018588437 | E115: 0.009120103391 | F115: 0.2236762044 | G115: 0.01615549802 | H115: 1.476434687e-05 | I115: 736428.4514 | J115: 10713.06106
A116: 111 | B116: 0.9966704794 | C116: 35.60897106 | D116: 0.2000344589 | E116: 0.009038187312 | F116: 0.2257162103 | G116: 0.0161559505 | H116: 1.477054919e-05 | I116: 750153.311 | J116: 10915.7424
A117: 112 | B117: 0.9966414151 | C117: 35.29000468 | D117: 0.1982426558 | E117: 0.008957733729 | F117: 0.2277563314 | G117: 0.01615640452 | H117: 1.477675413e-05 | I117: 764002.393 | J117: 11120.34411
A118: 113 | B118: 0.9966123675 | C118: 34.97668431 | D118: 0.1964825692 | E118: 0.008878703814 | F118: 0.2297965676 | G118: 0.01615686006 | H118: 1.478296167e-05 | I118: 777975.696 | J118: 11326.86773
A119: 114 | B119: 0.9965833368 | C119: 34.66886138 | D119: 0.1947533647 | E119: 0.008801060102 | F119: 0.2318369188 | G119: 0.01615731711 | H119: 1.478917182e-05 | I119: 792073.2188 | J119: 11535.31484
A120: 115 | B120: 0.9965543228 | C120: 34.36639246 | D120: 0.1930542366 | E120: 0.008724766431 | F120: 0.233877385 | G120: 0.01615777566 | H120: 1.479538457e-05 | I120: 806294.96 | J120: 11745.68698
A121: 116 | B121: 0.9965253257 | C121: 34.06913911 | D121: 0.1913844069 | E121: 0.008649787886 | F121: 0.2359179659 | G121: 0.01615823571 | H121: 1.480159994e-05 | I121: 820640.9183 | J121: 11957.98573
A122: 117 | B122: 0.9964963454 | C122: 33.77696758 | D122: 0.1897431246 | E122: 0.008576090746 | F122: 0.2379586617 | G122: 0.01615869725 | H122: 1.480781792e-05 | I122: 835111.0924 | J122: 12172.21264
A123: 118 | B123: 0.9964673819 | C123: 33.48974867 | D123: 0.1881296638 | E123: 0.008503642432 | F123: 0.239999472 | G123: 0.01615916028 | H123: 1.481403851e-05 | I123: 849705.4807 | J123: 12388.36927
A124: 119 | B124: 0.9964384353 | C124: 33.20735753 | D124: 0.1865433232 | E124: 0.008432411462 | F124: 0.242040397 | G124: 0.01615962477 | H124: 1.482026171e-05 | I124: 864424.0818 | J124: 12606.45718
A125: 120 | B125: 0.9964095054 | C125: 32.92967347 | D125: 0.1849834247 | E125: 0.008362367401 | F125: 0.2440814364 | G125: 0.01616009074 | H125: 1.482648753e-05 | I125: 879266.8943 | J125: 12826.47795
A126: 121 | B126: 0.9963805925 | C126: 32.65657978 | D126: 0.1834493127 | E126: 0.008293480821 | F126: 0.2461225901 | G126: 0.01616055816 | H126: 1.483271596e-05 | I126: 894233.9166 | J126: 13048.43312
A127: 122 | B127: 0.9963516963 | C127: 32.38796358 | D127: 0.1819403532 | E127: 0.008225723261 | F127: 0.2481638581 | G127: 0.01616102704 | H127: 1.483894701e-05 | I127: 909325.1472 | J127: 13272.32427
A128: 123 | B128: 0.996322817 | C128: 32.12371567 | D128: 0.1804559327 | E128: 0.008159067183 | F128: 0.2502052403 | G128: 0.01616149737 | H128: 1.484518068e-05 | I128: 924540.5845 | J128: 13498.15295
A129: 124 | B129: 0.9962939546 | C129: 31.86373036 | D129: 0.1789954574 | E129: 0.008093485938 | F129: 0.2522467366 | G129: 0.01616196913 | H129: 1.485141696e-05 | I129: 939880.2268 | J129: 13725.92074
A130: 125 | B130: 0.996265109 | C130: 31.60790535 | D130: 0.1775583528 | E130: 0.00802895373 | F130: 0.2542883469 | G130: 0.01616244232 | H130: 1.485765587e-05 | I130: 955344.0725 | J130: 13955.62919
A131: 126 | B131: 0.9962362802 | C131: 31.35614159 | D131: 0.1761440623 | E131: 0.007965445581 | F131: 0.256330071 | G131: 0.01616291694 | H131: 1.486389739e-05 | I131: 970932.12 | J131: 14187.27988
A132: 127 | B132: 0.9962074684 | C132: 31.10834313 | D132: 0.1747520471 | E132: 0.007902937302 | F132: 0.258371909 | G132: 0.01616339298 | H132: 1.487014154e-05 | I132: 986644.3674 | J132: 14420.87436
A133: 128 | B133: 0.9961786734 | C133: 30.86441705 | D133: 0.173381785 | E133: 0.007841405457 | F133: 0.2604138606 | G133: 0.01616387043 | H133: 1.487638831e-05 | I133: 1002480.813 | J133: 14656.41421
A134: 129 | B134: 0.9961498952 | C134: 30.62427329 | D134: 0.1720327703 | E134: 0.007780827339 | F134: 0.2624559258 | G134: 0.01616434928 | H134: 1.488263771e-05 | I134: 1018441.455 | J134: 14893.90099
A135: 130 | B135: 0.996121134 | C135: 30.38782456 | D135: 0.1707045125 | E135: 0.007721180938 | F135: 0.2644981046 | G135: 0.01616482954 | H135: 1.488888973e-05 | I135: 1034526.292 | J135: 15133.33626
A136: 131 | B136: 0.9960923896 | C136: 30.15498625 | D136: 0.1693965363 | E136: 0.007662444918 | F136: 0.2665403968 | G136: 0.01616531118 | H136: 1.489514438e-05 | I136: 1050735.322 | J136: 15374.7216
A137: 132 | B137: 0.9960636621 | C137: 29.9256763 | D137: 0.1681083808 | E137: 0.007604598587 | F137: 0.2685828023 | G137: 0.01616579422 | H137: 1.490140165e-05 | I137: 1067068.543 | J137: 15618.05858
A138: 133 | B138: 0.9960349516 | C138: 29.69981512 | D138: 0.1668395989 | E138: 0.007547621878 | F138: 0.270625321 | G138: 0.01616627863 | H138: 1.490766155e-05 | I138: 1083525.953 | J138: 15863.34876
A139: 134 | B139: 0.9960062579 | C139: 29.4773255 | D139: 0.1655897568 | E139: 0.00749149532 | F139: 0.2726679528 | G139: 0.01616676441 | H139: 1.491392409e-05 | I139: 1100107.549 | J139: 16110.59371
A140: 135 | B140: 0.9959775811 | C140: 29.25813253 | D140: 0.1643584337 | E140: 0.007436200023 | F140: 0.2747106977 | G140: 0.01616725157 | H140: 1.492018925e-05 | I140: 1116813.331 | J140: 16359.795
A141: 136 | B141: 0.9959489212 | C141: 29.04216347 | D141: 0.1631452211 | E141: 0.007381717648 | F141: 0.2767535555 | G141: 0.01616774008 | H141: 1.492645705e-05 | I141: 1133643.297 | J141: 16610.9542
A142: 137 | B142: 0.9959202782 | C142: 28.82934773 | D142: 0.1619497223 | E142: 0.007328030395 | F142: 0.2787965262 | G142: 0.01616822996 | H142: 1.493272747e-05 | I142: 1150597.443 | J142: 16864.07289
A143: 138 | B143: 0.9958916521 | C143: 28.61961677 | D143: 0.1607715524 | E143: 0.007275120978 | F143: 0.2808396096 | G143: 0.01616872118 | H143: 1.493900054e-05 | I143: 1167675.768 | J143: 17119.15263
A144: 139 | B144: 0.9958630429 | C144: 28.412904 | D144: 0.1596103372 | E144: 0.00722297261 | F144: 0.2828828057 | G144: 0.01616921375 | H144: 1.494527623e-05 | I144: 1184878.271 | J144: 17376.195
A145: 140 | B145: 0.9958344507 | C145: 28.20914475 | D145: 0.1584657135 | E145: 0.007171568981 | F145: 0.2849261143 | G145: 0.01616970765 | H145: 1.495155457e-05 | I145: 1202204.948 | J145: 17635.20156
A146: 141 | B146: 0.9958058754 | C146: 28.00827617 | D146: 0.1573373283 | E146: 0.007120894247 | F146: 0.2869695354 | G146: 0.01617020289 | H146: 1.495783554e-05 | I146: 1219655.798 | J146: 17896.1739
A147: 142 | B147: 0.995777317 | C147: 27.81023721 | D147: 0.1562248385 | E147: 0.007070933008 | F147: 0.2890130688 | G147: 0.01617069946 | H147: 1.496411915e-05 | I147: 1237230.819 | J147: 18159.11357
A148: 143 | B148: 0.9957487756 | C148: 27.61496849 | D148: 0.1551279106 | E148: 0.007021670295 | F148: 0.2910567145 | G148: 0.01617119734 | H148: 1.49704054e-05 | I148: 1254930.007 | J148: 18424.02217
A149: 144 | B149: 0.995720251 | C149: 27.4224123 | D149: 0.1540462205 | E149: 0.006973091557 | F149: 0.2931004724 | G149: 0.01617169655 | H149: 1.497669429e-05 | I149: 1272753.362 | J149: 18690.90126
A150: 145 | B150: 0.9956917435 | C150: 27.23251253 | D150: 0.1529794528 | E150: 0.00692518264 | F150: 0.2951443423 | G150: 0.01617219707 | H150: 1.498298582e-05 | I150: 1290700.881 | J150: 18959.75241
A151: 146 | B151: 0.9956632529 | C151: 27.04521458 | D151: 0.151927301 | E151: 0.006877929782 | F151: 0.2971883243 | G151: 0.01617269889 | H151: 1.498928e-05 | I151: 1308772.561 | J151: 19230.57721
A152: 147 | B152: 0.9956347792 | C152: 26.86046536 | D152: 0.1508894667 | E152: 0.006831319594 | F152: 0.2992324181 | G152: 0.01617320201 | H152: 1.499557682e-05 | I152: 1326968.4 | J152: 19503.37722
A153: 148 | B153: 0.9956063225 | C153: 26.6782132 | D153: 0.1498656598 | E153: 0.006785339049 | F153: 0.3012766237 | G153: 0.01617370643 | H153: 1.500187629e-05 | I153: 1345288.397 | J153: 19778.15403
A154: 149 | B154: 0.9955778827 | C154: 26.49840783 | D154: 0.1488555978 | E154: 0.006739975469 | F154: 0.303320941 | G154: 0.01617421214 | H154: 1.50081784e-05 | I154: 1363732.547 | J154: 20054.90921
A155: 150 | B155: 0.9955494599 | C155: 26.32100032 | D155: 0.1478590058 | E155: 0.006695216514 | F155: 0.3053653699 | G155: 0.01617471914 | H155: 1.501448316e-05 | I155: 1382300.85 | J155: 20333.64434
A156: 151 | B156: 0.9955210541 | C156: 26.14594302 | D156: 0.1468756162 | E156: 0.006651050173 | F156: 0.3074099103 | G156: 0.01617522741 | H156: 1.502079056e-05 | I156: 1400993.302 | J156: 20614.36099
A157: 152 | B157: 0.9954926653 | C157: 25.97318955 | D157: 0.1459051684 | E157: 0.006607464748 | F157: 0.3094545621 | G157: 0.01617573697 | H157: 1.502710062e-05 | I157: 1419809.901 | J157: 20897.06075
A158: 153 | B158: 0.9954642934 | C158: 25.80269474 | D158: 0.1449474087 | E158: 0.006564448849 | F158: 0.3114993252 | G158: 0.01617624779 | H158: 1.503341333e-05 | I158: 1438750.645 | J158: 21181.74519
A159: 154 | B159: 0.9954359385 | C159: 25.63441458 | D159: 0.1440020899 | E159: 0.006521991382 | F159: 0.3135441996 | G159: 0.01617675988 | H159: 1.503972869e-05 | I159: 1457815.53 | J159: 21468.41589
A160: 155 | B160: 0.9954076006 | C160: 25.46830621 | D160: 0.1430689711 | E160: 0.006480081537 | F160: 0.315589185 | G160: 0.01617727322 | H160: 1.50460467e-05 | I160: 1477004.556 | J160: 21757.07444
A161: 156 | B161: 0.9953792797 | C161: 25.30432787 | D161: 0.1421478179 | E161: 0.006438708784 | F161: 0.3176342814 | G161: 0.01617778783 | H161: 1.505236737e-05 | I161: 1496317.718 | J161: 22047.72241
A162: 157 | B162: 0.9953509758 | C162: 25.14243885 | D162: 0.1412384015 | E162: 0.00639786286 | F162: 0.3196794888 | G162: 0.01617830369 | H162: 1.505869069e-05 | I162: 1515755.014 | J162: 22340.36139
A163: 158 | B163: 0.9953226889 | C163: 24.98259949 | D163: 0.1403404991 | E163: 0.006357533761 | F163: 0.321724807 | G163: 0.01617882079 | H163: 1.506501667e-05 | I163: 1535316.442 | J163: 22634.99295
A164: 159 | B164: 0.995294419 | C164: 24.82477111 | D164: 0.1394538935 | E164: 0.006317711735 | F164: 0.3237702359 | G164: 0.01617933914 | H164: 1.50713453e-05 | I164: 1555001.998 | J164: 22931.61867
A165: 160 | B165: 0.9952661661 | C165: 24.66891601 | D165: 0.1385783728 | E165: 0.006278387276 | F165: 0.3258157755 | G165: 0.01617985872 | H165: 1.50776766e-05 | I165: 1574811.681 | J165: 23230.24015
A166: 161 | B166: 0.9952379302 | C166: 24.51499741 | D166: 0.1377137305 | E166: 0.006239551111 | F166: 0.3278614256 | G166: 0.01618037954 | H166: 1.508401055e-05 | I166: 1594745.488 | J166: 23530.85897
A167: 162 | B167: 0.9952097114 | C167: 24.36297947 | D167: 0.1368597651 | E167: 0.006201194198 | F167: 0.3299071861 | G167: 0.01618090159 | H167: 1.509034717e-05 | I167: 1614803.415 | J167: 23833.47669
A168: 163 | B168: 0.9951815095 | C168: 24.21282718 | D168: 0.1360162802 | E168: 0.006163307717 | F168: 0.3319530569 | G168: 0.01618142486 | H168: 1.509668644e-05 | I168: 1634985.46 | J168: 24138.09492
A169: 164 | B169: 0.9951533247 | C169: 24.06450643 | D169: 0.135183084 | E169: 0.006125883061 | F169: 0.333999038 | G169: 0.01618194935 | H169: 1.510302838e-05 | I169: 1655291.62 | J169: 24444.71524
A170: 165 | B170: 0.9951251569 | C170: 23.91798392 | D170: 0.1343599894 | E170: 0.006088911834 | F170: 0.3360451293 | G170: 0.01618247506 | H170: 1.510937299e-05 | I170: 1675721.892 | J170: 24753.33923
A171: 166 | B171: 0.9950970062 | C171: 23.77322715 | D171: 0.1335468139 | E171: 0.006052385841 | F171: 0.3380913306 | G171: 0.01618300198 | H171: 1.511572026e-05 | I171: 1696276.273 | J171: 25063.96847
A172: 167 | B172: 0.9950688725 | C172: 23.6302044 | D172: 0.1327433793 | E172: 0.006016297084 | F172: 0.3401376418 | G172: 0.01618353011 | H172: 1.512207019e-05 | I172: 1716954.761 | J172: 25376.60456
A173: 168 | B173: 0.9950407558 | C173: 23.4888847 | D173: 0.1319495117 | E173: 0.005980637755 | F173: 0.3421840629 | G173: 0.01618405944 | H173: 1.51284228e-05 | I173: 1737757.352 | J173: 25691.24908
A174: 169 | B174: 0.9950126562 | C174: 23.34923782 | D174: 0.1311650411 | E174: 0.00594540023 | F174: 0.3442305938 | G174: 0.01618458997 | H174: 1.513477807e-05 | I174: 1758684.044 | J174: 26007.90362
A175: 170 | B175: 0.9949845736 | C175: 23.21123425 | D175: 0.1303898019 | E175: 0.005910577067 | F175: 0.3462772343 | G175: 0.01618512169 | H175: 1.514113601e-05 | I175: 1779734.833 | J175: 26326.56976
A176: 171 | B176: 0.9949565081 | C176: 23.07484514 | D176: 0.1296236321 | E176: 0.005876160996 | F176: 0.3483239844 | G176: 0.01618565461 | H176: 1.514749662e-05 | I176: 1800909.717 | J176: 26647.24909
A177: 172 | B177: 0.9949284596 | C177: 22.94004236 | D177: 0.1288663734 | E177: 0.005842144915 | F177: 0.3503708439 | G177: 0.01618618871 | H177: 1.515385991e-05 | I177: 1822208.692 | J177: 26969.94321
A178: 173 | B178: 0.9949004283 | C178: 22.80679837 | D178: 0.1281178713 | E178: 0.00580852189 | F178: 0.3524178128 | G178: 0.016186724 | H178: 1.516022587e-05 | I178: 1843631.756 | J178: 27294.6537
A179: 174 | B179: 0.9948724139 | C179: 22.67508632 | D179: 0.1273779749 | E179: 0.005775285142 | F179: 0.354464891 | G179: 0.01618726046 | H179: 1.51665945e-05 | I179: 1865178.905 | J179: 27621.38215
A180: 175 | B180: 0.9948444167 | C180: 22.54487993 | D180: 0.1266465367 | E180: 0.005742428049 | F180: 0.3565120784 | G180: 0.0161877981 | H180: 1.517296581e-05 | I180: 1886850.135 | J180: 27950.13016
A181: 176 | B181: 0.9948164365 | C181: 22.41615355 | D181: 0.1259234123 | E181: 0.005709944142 | F181: 0.3585593748 | G181: 0.01618833692 | H181: 1.517933979e-05 | I181: 1908645.445 | J181: 28280.89931
A182: 177 | B182: 0.9947884734 | C182: 22.28888208 | D182: 0.1252084611 | E182: 0.005677827093 | F182: 0.3606067802 | G182: 0.0161888769 | H182: 1.518571645e-05 | I182: 1930564.831 | J182: 28613.69119
A183: 178 | B183: 0.9947605274 | C183: 22.16304101 | D183: 0.1245015451 | E183: 0.00564607072 | F183: 0.3626542944 | G183: 0.01618941804 | H183: 1.519209579e-05 | I183: 1952608.289 | J183: 28948.50741
A184: 179 | B184: 0.9947325985 | C184: 22.03860636 | D184: 0.1238025298 | E184: 0.005614668978 | F184: 0.3647019175 | G184: 0.01618996034 | H184: 1.519847781e-05 | I184: 1974775.816 | J184: 29285.34954
A185: 180 | B185: 0.9947046867 | C185: 21.9155547 | D185: 0.1231112834 | E185: 0.005583615956 | F185: 0.3667496492 | G185: 0.0161905038 | H185: 1.520486251e-05 | I185: 1997067.41 | J185: 29624.21919
A186: 181 | B186: 0.994676792 | C186: 21.7938631 | D186: 0.1224276772 | E186: 0.005552905875 | F186: 0.3687974895 | G186: 0.01619104841 | H186: 1.52112499e-05 | I186: 2019483.066 | J186: 29965.11795
A187: 182 | B187: 0.9946489144 | C187: 21.67350915 | D187: 0.1217515852 | E187: 0.005522533081 | F187: 0.3708454383 | G187: 0.01619159418 | H187: 1.521763997e-05 | I187: 2042022.782 | J187: 30308.04741
A188: 183 | B188: 0.9946210539 | C188: 21.5544709 | D188: 0.1210828844 | E188: 0.005492492046 | F188: 0.3728934955 | G188: 0.01619214108 | H188: 1.522403272e-05 | I188: 2064686.553 | J188: 30653.00917
A189: 184 | B189: 0.9945932105 | C189: 21.43672693 | D189: 0.120421454 | E189: 0.005462777359 | F189: 0.374941661 | G189: 0.01619268913 | H189: 1.523042815e-05 | I189: 2087474.378 | J189: 31000.00482
A190: 185 | B190: 0.9945653842 | C190: 21.32025622 | D190: 0.1197671764 | E190: 0.005433383728 | F190: 0.3769899347 | G190: 0.01619323832 | H190: 1.523682628e-05 | I190: 2110386.251 | J190: 31349.03596
A191: 186 | B191: 0.9945375751 | C191: 21.20503825 | D191: 0.119119936 | E191: 0.005404305976 | F191: 0.3790383164 | G191: 0.01619378864 | H191: 1.524322709e-05 | I191: 2133422.171 | J191: 31700.10418
A192: 187 | B192: 0.9945097831 | C192: 21.09105293 | D192: 0.11847962 | E192: 0.005375539035 | F192: 0.3810868062 | G192: 0.01619434009 | H192: 1.524963059e-05 | I192: 2156582.133 | J192: 32053.21109
A193: 188 | B193: 0.9944820082 | C193: 20.97828057 | D193: 0.117846118 | E193: 0.005347077944 | F193: 0.3831354039 | G193: 0.01619489267 | H193: 1.525603678e-05 | I193: 2179866.133 | J193: 32408.35828
A194: 189 | B194: 0.9944542504 | C194: 20.86670194 | D194: 0.1172193216 | E194: 0.005318917849 | F194: 0.3851841093 | G194: 0.01619544638 | H194: 1.526244566e-05 | I194: 2203274.169 | J194: 32765.54735
A195: 190 | B195: 0.9944265098 | C195: 20.75629817 | D195: 0.1165991252 | E195: 0.005291053997 | F195: 0.3872329225 | G195: 0.0161960012 | H195: 1.526885723e-05 | I195: 2226806.237 | J195: 33124.77989
A196: 191 | B196: 0.9943987863 | C196: 20.64705082 | D196: 0.1159854249 | E196: 0.005263481736 | F196: 0.3892818432 | G196: 0.01619655715 | H196: 1.52752715e-05 | I196: 2250462.334 | J196: 33486.05752
A197: 192 | B197: 0.99437108 | C197: 20.53894182 | D197: 0.1153781194 | E197: 0.005236196508 | F197: 0.3913308714 | G197: 0.0161971142 | H197: 1.528168846e-05 | I197: 2274242.455 | J197: 33849.38182
A198: 193 | B198: 0.9943433908 | C198: 20.43195347 | D198: 0.1147771091 | E198: 0.005209193852 | F198: 0.3933800071 | G198: 0.01619767237 | H198: 1.528810812e-05 | I198: 2298146.597 | J198: 34214.7544
A199: 194 | B199: 0.9943157187 | C199: 20.32606844 | D199: 0.1141822968 | E199: 0.005182469399 | F199: 0.3954292501 | G199: 0.01619823165 | H199: 1.529453047e-05 | I199: 2322174.756 | J199: 34582.17685
A200: 195 | B200: 0.9942880639 | C200: 20.22126976 | D200: 0.1135935871 | E200: 0.005156018868 | F200: 0.3974786002 | G200: 0.01619879203 | H200: 1.530095552e-05 | I200: 2346326.929 | J200: 34951.65079
A201: 196 | B201: 0.9942604262 | C201: 20.11754081 | D201: 0.1130108866 | E201: 0.005129838066 | F201: 0.3995280575 | G201: 0.01619935351 | H201: 1.530738327e-05 | I201: 2370603.112 | J201: 35323.17781
A202: 197 | B202: 0.9942328056 | C202: 20.01486528 | D202: 0.1124341038 | E202: 0.005103922887 | F202: 0.4015776218 | G202: 0.01619991609 | H202: 1.531381373e-05 | I202: 2395003.302 | J202: 35696.75952
A203: 198 | B203: 0.9942052023 | C203: 19.91322723 | D203: 0.111863149 | E203: 0.005078269304 | F203: 0.403627293 | G203: 0.01620047977 | H203: 1.532024688e-05 | I203: 2419527.494 | J203: 36072.39751
A204: 199 | B204: 0.9941776161 | C204: 19.812611 | D204: 0.1112979343 | E204: 0.005052873375 | F204: 0.4056770709 | G204: 0.01620104454 | H204: 1.532668273e-05 | I204: 2444175.685 | J204: 36450.0934
... 4296 more rows

Sheet Curve Data (hidden)
A1: From Beggs, Gas Production Operations, p. 259, Subroutine HAGBR array data for Hagedorn and Brown Method for 2-phase flow
A5: Fig. 4-7 | B5: Fig. 4-7 | D5: Fig. 4-8 | E5: Fig.4-8 | G5: Fig. 4-9 | H5: Fig. 4-9
A6: NL | B6: CNL | D6: NLV... | E6: HL/y | G6: NGV... | H6: y | AJ6: (ft) | AK6: Phase | AL6: (psi/ft) | AM6: (psia)
A7: XCNL | B7: YCNL | D7: XHL | E7: YHL | G7: XPHI | H7: YPHI | AF7: 0.1754144226 | AJ7: 400 | AK7: Two-Phase | AL7: 0.1295125545 | AM7: 251.8050218
A8: 0.002 | B8: 0.0019 | D8: 2e-06 | E8: 0.04 | G8: 0 | H8: 1 | AF8: 0 | AJ8: 800 | AK8: Two-Phase | AL8: 0.1410349074 | AM8: 308.2189848
A9: 0.005 | B9: 0.0022 | D9: 5e-06 | E9: 0.09 | G9: 0.01 | H9: 1 | AJ9: 1200 | AK9: Two-Phase | AL9: 0.1536939106 | AM9: 369.696549
A10: 0.01 | B10: 0.0024 | D10: 1e-05 | E10: 0.15 | G10: 0.02 | H10: 1.1 | AF10: 8.834170872 | AJ10: 1600 | AK10: Two-Phase | AL10: 0.1699552008 | AM10: 437.6786293
A11: 0.02 | B11: 0.0028 | D11: 2e-05 | E11: 0.18 | G11: 0.025 | H11: 1.23 | AF11: 0 | AJ11: 2000 | AK11: Two-Phase | AL11: 0.1966051237 | AM11: 516.3206788
A12: 0.03 | B12: 0.0033 | D12: 5e-05 | E12: 0.25 | G12: 0.03 | H12: 1.4 | AJ12: 2400 | AK12: Liquid | AL12: 0.3911582439 | AM12: 672.7839764
A13: 0.06 | B13: 0.0047 | D13: 0.0001 | E13: 0.34 | G13: 0.035 | H13: 1.53 | AF13: 2.052989349 | AJ13: 2800 | AK13: Liquid | AL13: 0.3865078081 | AM13: 827.3870996
A14: 0.1 | B14: 0.0064 | D14: 0.0002 | E14: 0.44 | G14: 0.04 | H14: 1.6 | AF14: 0 | AJ14: 3200 | AK14: Liquid | AL14: 0.3821069902 | AM14: 980.2298956
A15: 0.15 | B15: 0.008 | D15: 0.0005 | E15: 0.65 | G15: 0.045 | H15: 1.65 | AF15: 2.052989349 | AJ15: 3600 | AK15: Liquid | AL15: 0.377926359 | AM15: 1131.400439
A16: 0.2 | B16: 0.009 | D16: 0.001 | E16: 0.82 | G16: 0.05 | H16: 1.68 | AF16: 21.90115025 | AJ16: 4000 | AK16: Liquid | AL16: 0.373947939 | AM16: 1280.979615
A17: 0.4 | B17: 0.0115 | D17: 0.002 | E17: 0.92 | G17: 0.06 | H17: 1.74 | AF17: 1 | AJ17: 4400 | AK17: Liquid | AL17: 0.370155907 | AM17: 1429.041978
D18: 0.003 | E18: 0.96 | G18: 0.07 | H18: 1.78 | AF18: 50.36171336 | AJ18: 4800 | AK18: Liquid | AL18: 0.3665362063 | AM18: 1575.65646
D19: 0.01 | E19: 1 | G19: 0.08 | H19: 1.8 | AF19: 0 | AJ19: 5200 | AK19: Liquid | AL19: 0.3630762686 | AM19: 1720.886968
G20: 0.09 | H20: 1.83 | AF20: 50.36171336 | AJ20: 5600 | AK20: Liquid | AL20: 0.3597648004 | AM20: 1864.792888
AF21: 3.65199116 | AJ21: 6000 | AK21: Liquid | AL21: 0.356591612 | AM21: 2007.429533
AF22: 0.02404707851 | AJ22: 6400 | AK22: Liquid | AL22: 0.3535474767 | AM22: 2148.848523
A23: Figure 4.7, 4.8, 4.9 (Beggs) Linear Interpolations | AF23: 49.77201071 | AJ23: 6800 | AK23: Liquid | AL23: 0.3510096837 | AM23: 2289.252397
A24: NL | B24: CNL | D24: NLV... | E24: HL/y | G24: NGV... | H24: y | AF24: 0.003146944246 | AJ24: 7200 | AK24: Liquid | AL24: 0.351011465 | AM24: 2429.656983
A25: 0.002164448113 | B25: =IF(A25<0.002,0.0019,VINTERPOLATE(A25,A8:B17,2)) -> 0.001916444811 | D25: 1.616184864e-08 | E25: =IF(D25<0.000002,0.04,VINTERPOLATE(D25,D8:E19,2)) -> 0.04 | G25: 0.00144485625 | H25: =IF(G25>0.09,1.83,VINTERPOLATE(G25,G8:H20,2)) -> 1 | I25: linear | AF25: 0.002026282137 | AJ25: 7600 | AK25: Liquid | AL25: 0.3510133579 | AM25: 2570.062326
AF26: 0.00183198024 | AJ26: 8000 | AK26: Liquid | AL26: 0.3510153554 | AM26: 2710.468468
AF27: 0.9117966172
B28: =cubic_spline(A8:A17,B8:B17,A25) -> 0.001918384751 | E28: =cubic_spline(D8:D17,E8:E17,D25) -> 0.006247568627 | H28: =cubic_spline(G8:G17,H8:H17,G25) -> 0.9979500658 | I28: cubic spline | K28: Function cubic_spline(input_column As Range, _ | AF28: 6.290886677e-07
K29: output_column As Range, _ | AF29: 0.9999991144
K30: x As Range) | AF30: 1
AF31: 50.36171336
AF32: 50.36171336
AF33: 0.4682247046
AF34: 108375.3078
AA35: 2710.468468 | AF35: 0.01846280879
AF36: 0.3510153554
AF37: 2
AA39: 109.1258791

Sheet PMTx - Dehan 15-1 (hidden)
A1: Dehan 15-1 - Linear Pressure Steps
D2: Start Date
A3: Match Total Production Table | G3: 10698
K4: Cum | L4: ywf | M4: ywf k(p) | R4: Pwf | S4: dP | T4: dP / day
A5: Date | B5: Gas Rate | C5: Cum Prod | D5: Ref Date | E5: Days | F5: dp/day | G5: Pwf | K5: bcf | L5: (psia2/cp) | M5: (psia2/cp)
A6: 2009-08-22 | B6: 0 | C6: 0 | D6: 2009-08-09 | E6: =A6-$D$6 -> 13 | F6: =VLOOKUP(D6,P6:T28,5,FALSE) -> 29.33333333 | G6: 10316.66667 | K6: =C6/1000000 -> 0 | L6: =VLOOKUP(G6,'Gas Prop'!$A$23:$J$15002,9) -> 0 | M6: =VLOOKUP(G6,'Gas Prop'!$A$23:$J$15002,10) -> 0 | P6: 2009-08-09 | R6: 10698 | T6: 29.33333333
A7: 2009-08-23 | B7: 2278.953349 | C7: 2605.554086 | D7: =IF(A7=(VLOOKUP(A7,$P$6:$P$28,1,FALSE)),A7) ->  | E7: =A7-A6 -> 1 | F7: 29.33333333 | G7: =G6-(E7*F7) -> 10287.33333 | K7: =C7/1000000 -> 0.002605554086 | L7: =VLOOKUP(G7,'Gas Prop'!$A$23:$J$15002,9) -> 0 | M7: =VLOOKUP(G7,'Gas Prop'!$A$23:$J$15002,10) -> 0 | P7: 2009-09-08 | Q7: =P7-P6 -> 30 | R7: 9818 | S7: =R6-R7 -> 880 | T7: 10.53333333
A8: 2009-08-24 | B8: 3085.639334 | C8: 5294.813017 | E8: =A8-A7 -> 1 | F8: 29.33333333 | G8: =G7-(E8*F8) -> 10258 | K8: 0.005294813017 | L8: =VLOOKUP(G8,'Gas Prop'!$A$23:$J$15002,9) -> 0 | M8: =VLOOKUP(G8,'Gas Prop'!$A$23:$J$15002,10) -> 0 | P8: 2009-10-08 | Q8: =P8-P7 -> 30 | R8: 9502 | S8: =R7-R8 -> 316 | T8: 10.4
A9: 2009-08-25 | B9: 3824.464266 | C9: 8754.455118 | E9: 1 | F9: 29.33333333 | G9: 10228.66667 | K9: 0.008754455118 | L9: =VLOOKUP(G9,'Gas Prop'!$A$23:$J$15002,9) -> 0 | M9: =VLOOKUP(G9,'Gas Prop'!$A$23:$J$15002,10) -> 0 | P9: 2009-11-07 | Q9: 30 | R9: 9190 | S9: 312 | T9: 0
A10: 2009-08-26 | B10: 4515.983002 | C10: 12928.06455 | E10: 1 | F10: 29.33333333 | G10: 10199.33333 | K10: 0.01292806455 | L10: =VLOOKUP(G10,'Gas Prop'!$A$23:$J$15002,9) -> 0 | M10: =VLOOKUP(G10,'Gas Prop'!$A$23:$J$15002,10) -> 0 | P10: 2009-12-13 | Q10: 36 | R10: 9192 | S10: 0 | T10: 10.8
A11: 2009-08-27 | B11: 5171.443789 | C11: 17774.44495 | E11: 1 | F11: 29.33333333 | G11: 10170 | K11: 0.01777444495 | L11: =VLOOKUP(G11,'Gas Prop'!$A$23:$J$15002,9) -> 0 | M11: =VLOOKUP(G11,'Gas Prop'!$A$23:$J$15002,10) -> 0 | P11: 2010-01-12 | Q11: 30 | R11: 8868 | S11: 324 | T11: 13.06666667
A12: 2009-08-28 | B12: 5797.903771 | C12: 23261.30814 | E12: 1 | F12: 29.33333333 | G12: 10140.66667 | K12: 0.02326130814 | L12: =VLOOKUP(G12,'Gas Prop'!$A$23:$J$15002,9) -> 3492097281 | M12: =VLOOKUP(G12,'Gas Prop'!$A$23:$J$15002,10) -> 1017436500 | P12: 2010-02-11 | Q12: 30 | R12: 8476 | S12: 392 | T12: 9.866666667
A13: 2009-08-29 | B13: 6400.22349 | C13: 29362.21939 | E13: 1 | F13: 29.33333333 | G13: 10111.33333 | K13: 0.02936221939 | L13: =VLOOKUP(G13,'Gas Prop'!$A$23:$J$15002,9) -> 3478820622 | M13: =VLOOKUP(G13,'Gas Prop'!$A$23:$J$15002,10) -> 1004279108 | P13: 2010-03-13 | Q13: 30 | R13: 8180 | S13: 296 | T13: 9.866666667
A14: 2009-08-30 | B14: 6981.963921 | C14: 36054.9044 | E14: 1 | F14: 29.33333333 | G14: 10082 | K14: 0.0360549044 | L14: =VLOOKUP(G14,'Gas Prop'!$A$23:$J$15002,9) -> 3465086936 | M14: =VLOOKUP(G14,'Gas Prop'!$A$23:$J$15002,10) -> 990836378.8 | P14: 2010-04-12 | Q14: 30 | R14: 7884 | S14: 296 | T14: 10.16666667
A15: 2009-08-31 | B15: 7545.833474 | C15: 43320.19694 | E15: 1 | F15: 29.33333333 | G15: 10052.66667 | K15: 0.04332019694 | L15: =VLOOKUP(G15,'Gas Prop'!$A$23:$J$15002,9) -> 3451811846 | M15: =VLOOKUP(G15,'Gas Prop'!$A$23:$J$15002,10) -> 978002536.5 | P15: 2010-05-12 | Q15: 30 | R15: 7579 | S15: 305 | T15: 10.03333333
A16: 2009-09-01 | B16: 8093.937224 | C16: 51141.32119 | E16: 1 | F16: 29.33333333 | G16: 10023.33333 | K16: 0.05114132119 | L16: =VLOOKUP(G16,'Gas Prop'!$A$23:$J$15002,9) -> 3438537595 | M16: =VLOOKUP(G16,'Gas Prop'!$A$23:$J$15002,10) -> 965324863.8 | P16: 2010-06-11 | Q16: 30 | R16: 7278 | S16: 301 | T16: 11.8
A17: 2009-09-02 | B17: 8627.932321 | C17: 59503.37203 | E17: 1 | F17: 29.33333333 | G17: 9994 | K17: 0.05950337203 | L17: =VLOOKUP(G17,'Gas Prop'!$A$23:$J$15002,9) -> 3424806543 | M17: =VLOOKUP(G17,'Gas Prop'!$A$23:$J$15002,10) -> 952372394 | P17: 2010-07-11 | Q17: 30 | R17: 6924 | S17: 354 | T17: 10.9
A18: 2009-09-03 | B18: 9149.139282 | C18: 68392.92605 | E18: 1 | F18: 29.33333333 | G18: 9964.666667 | K18: 0.06839292605 | L18: =VLOOKUP(G18,'Gas Prop'!$A$23:$J$15002,9) -> 3411534143 | M18: =VLOOKUP(G18,'Gas Prop'!$A$23:$J$15002,10) -> 940006737.2 | P18: 2010-08-10 | Q18: 30 | R18: 6597 | S18: 327 | T18: -6.355932203
A19: 2009-09-04 | B19: 9658.618494 | C19: 77797.74353 | E19: 1 | F19: 29.33333333 | G19: 9935.333333 | K19: 0.07779774353 | L19: =VLOOKUP(G19,'Gas Prop'!$A$23:$J$15002,9) -> 3398262722 | M19: =VLOOKUP(G19,'Gas Prop'!$A$23:$J$15002,10) -> 927791682.8 | P19: 2010-12-06 | Q19: 118 | R19: 7347 | S19: -750 | T19: 20.73529412
A20: 2009-09-05 | B20: 10157.23117 | C20: 87706.54256 | E20: 1 | F20: 29.33333333 | G20: 9906 | K20: 0.08770654256 | L20: =VLOOKUP(G20,'Gas Prop'!$A$23:$J$15002,9) -> 3384534749 | M20: =VLOOKUP(G20,'Gas Prop'!$A$23:$J$15002,10) -> 915311995.3 | P20: 2011-01-09 | Q20: 34 | R20: 6642 | S20: 705 | T20: 34.6
A21: 2009-09-06 | B21: 10645.68366 | C21: 98108.82044 | E21: 1 | F21: 29.33333333 | G21: 9876.666667 | K21: 0.09810882044 | L21: =VLOOKUP(G21,'Gas Prop'!$A$23:$J$15002,9) -> 3371265470 | M21: =VLOOKUP(G21,'Gas Prop'!$A$23:$J$15002,10) -> 903397833.4 | P21: 2011-02-08 | Q21: 30 | R21: 5604 | S21: 1038 | T21: 3.833333333
A22: 2009-09-07 | B22: 11124.56334 | C22: 108994.7201 | E22: 1 | F22: 29.33333333 | G22: 9847.333333 | K22: 0.1089947201 | L22: =VLOOKUP(G22,'Gas Prop'!$A$23:$J$15002,9) -> 3357997318 | M22: =VLOOKUP(G22,'Gas Prop'!$A$23:$J$15002,10) -> 891628904.5 | P22: 2011-03-10 | Q22: 30 | R22: 5489 | S22: 115 | T22: -5.933333333
A23: 2009-09-08 | B23: 11594.36102 | C23: 120354.9205 | D23: 2009-09-08 | E23: 1 | F23: =VLOOKUP(D23,$P$6:$T$26,5,FALSE) -> 10.53333333 | G23: 9836.8 | K23: 0.1203549205 | L23: =VLOOKUP(G23,'Gas Prop'!$A$23:$J$15002,9) -> 3352964875 | M23: =VLOOKUP(G23,'Gas Prop'!$A$23:$J$15002,10) -> 887202461.1 | P23: 2011-04-09 | Q23: 30 | R23: 5667 | S23: -178 | T23: 19.86666667
A24: 2009-09-09 | B24: 10920.03467 | C24: 131534.5925 | E24: 1 | F24: 10.53333333 | G24: 9826.266667 | K24: 0.1315345925 | L24: =VLOOKUP(G24,'Gas Prop'!$A$23:$J$15002,9) -> 3348390076 | M24: =VLOOKUP(G24,'Gas Prop'!$A$23:$J$15002,10) -> 883196259.7 | P24: 2011-05-09 | Q24: 30 | R24: 5071 | S24: 596 | T24: 13.33333333
A25: 2009-09-10 | B25: 10601.57618 | C25: 142284.8186 | E25: 1 | F25: 10.53333333 | G25: 9815.733333 | K25: 0.1422848186 | L25: =VLOOKUP(G25,'Gas Prop'!$A$23:$J$15002,9) -> 3343357963 | M25: =VLOOKUP(G25,'Gas Prop'!$A$23:$J$15002,10) -> 878808973.8 | P25: 2011-06-08 | Q25: 30 | R25: 4671 | S25: 400 | T25: 9.8
A26: 2009-09-11 | B26: 10372.90847 | C26: 152766.833 | E26: 1 | F26: 10.53333333 | G26: 9805.2 | K26: 0.152766833 | L26: =VLOOKUP(G26,'Gas Prop'!$A$23:$J$15002,9) -> 3338783469 | M26: =VLOOKUP(G26,'Gas Prop'!$A$23:$J$15002,10) -> 874838216.3 | P26: 2011-07-08 | Q26: 30 | R26: 4377 | S26: 294 | T26: 13.23333333
A27: 2009-09-12 | B27: 10193.92897 | C27: 163046.9957 | E27: 1 | F27: 10.53333333 | G27: 9794.666667 | K27: 0.1630469957 | L27: =VLOOKUP(G27,'Gas Prop'!$A$23:$J$15002,9) -> 3333751697 | M27: =VLOOKUP(G27,'Gas Prop'!$A$23:$J$15002,10) -> 870489750.2 | P27: 2011-08-07 | Q27: 30 | R27: 3980 | S27: 397
A28: 2009-09-13 | B28: 10047.5917 | C28: 173165.4949 | E28: 1 | F28: 10.53333333 | G28: 9784.133333 | K28: 0.1731654949 | L28: =VLOOKUP(G28,'Gas Prop'!$A$23:$J$15002,9) -> 3329177517 | M28: =VLOOKUP(G28,'Gas Prop'!$A$23:$J$15002,10) -> 866554130.8 | P28: 2039-08-09 | Q28: 10229 | R28: 3980 | S28: 0 | T28: =S28/Q28 -> 0
A29: 2009-09-14 | B29: 9924.642924 | C29: 183149.9391 | E29: 1 | F29: 10.53333333 | G29: 9773.6 | K29: 0.1831499391 | L29: =VLOOKUP(G29,'Gas Prop'!$A$23:$J$15002,9) -> 3324146095 | M29: =VLOOKUP(G29,'Gas Prop'!$A$23:$J$15002,10) -> 862244149.6
A30: 2009-09-15 | B30: 9819.337909 | C30: 193020.6427 | E30: 1 | F30: 10.53333333 | G30: 9763.066667 | K30: 0.1930206427 | L30: =VLOOKUP(G30,'Gas Prop'!$A$23:$J$15002,9) -> 3319572238 | M30: =VLOOKUP(G30,'Gas Prop'!$A$23:$J$15002,10) -> 858343365.2
A31: 2009-09-16 | B31: 9727.765184 | C31: 202793.1809 | E31: 1 | F31: 10.53333333 | G31: 9752.533333 | K31: 0.2027931809 | L31: =VLOOKUP(G31,'Gas Prop'!$A$23:$J$15002,9) -> 3314541176 | M31: =VLOOKUP(G31,'Gas Prop'!$A$23:$J$15002,10) -> 854071536.8
A32: 2009-09-17 | B32: 9647.090871 | C32: 212479.7982 | E32: 1 | F32: 10.53333333 | G32: 9742 | K32: 0.2124797982 | L32: =VLOOKUP(G32,'Gas Prop'!$A$23:$J$15002,9) -> 3309510307 | M32: =VLOOKUP(G32,'Gas Prop'!$A$23:$J$15002,10) -> 849819561.8
A33: 2009-09-18 | B33: 9575.183643 | C33: 222090.2794 | E33: 1 | F33: 10.53333333 | G33: 9731.466667 | K33: 0.2220902794 | L33: =VLOOKUP(G33,'Gas Prop'!$A$23:$J$15002,9) -> 3304936960 | M33: =VLOOKUP(G33,'Gas Prop'!$A$23:$J$15002,10) -> 845971282.3
A34: 2009-09-19 | B34: 9510.405247 | C34: 231632.5378 | E34: 1 | F34: 10.53333333 | G34: 9720.933333 | K34: 0.2316325378 | L34: =VLOOKUP(G34,'Gas Prop'!$A$23:$J$15002,9) -> 3299906467 | M34: =VLOOKUP(G34,'Gas Prop'!$A$23:$J$15002,10) -> 841756959.7
A35: 2009-09-20 | B35: 9451.47982 | C35: 241113.0381 | E35: 1 | F35: 10.53333333 | G35: 9710.4 | K35: 0.2411130381 | L35: =VLOOKUP(G35,'Gas Prop'!$A$23:$J$15002,9) -> 3295333466 | M35: =VLOOKUP(G35,'Gas Prop'!$A$23:$J$15002,10) -> 837942761.7
A36: 2009-09-21 | B36: 9397.404134 | C36: 250537.1116 | E36: 1 | F36: 10.53333333 | G36: 9699.866667 | K36: 0.2505371116 | L36: =VLOOKUP(G36,'Gas Prop'!$A$23:$J$15002,9) -> 3290303360 | M36: =VLOOKUP(G36,'Gas Prop'!$A$23:$J$15002,10) -> 833765766.7
A37: 2009-09-22 | B37: 9347.388545 | C37: 259909.198 | E37: 1 | F37: 10.53333333 | G37: 9689.333333 | K37: 0.259909198 | L37: =VLOOKUP(G37,'Gas Prop'!$A$23:$J$15002,9) -> 3285730715 | M37: =VLOOKUP(G37,'Gas Prop'!$A$23:$J$15002,10) -> 829985356.2
A38: 2009-09-23 | B38: 9300.802918 | C38: 269233.0305 | E38: 1 | F38: 10.53333333 | G38: 9678.8 | K38: 0.2692330305 | L38: =VLOOKUP(G38,'Gas Prop'!$A$23:$J$15002,9) -> 3280701005 | M38: =VLOOKUP(G38,'Gas Prop'!$A$23:$J$15002,10) -> 825845366.7
A39: 2009-09-24 | B39: 9257.145569 | C39: 278511.779 | E39: 1 | F39: 10.53333333 | G39: 9668.266667 | K39: 0.278511779 | L39: =VLOOKUP(G39,'Gas Prop'!$A$23:$J$15002,9) -> 3276128725 | M39: =VLOOKUP(G39,'Gas Prop'!$A$23:$J$15002,10) -> 822098452.2
A40: 2009-09-25 | B40: 9216.008391 | C40: 287748.1607 | E40: 1 | F40: 10.53333333 | G40: 9657.733333 | K40: 0.2877481607 | L40: =VLOOKUP(G40,'Gas Prop'!$A$23:$J$15002,9) -> 3271099422 | M40: =VLOOKUP(G40,'Gas Prop'!$A$23:$J$15002,10) -> 817995148.9
A41: 2009-09-26 | B41: 9177.063542 | C41: 296944.526 | E41: 1 | F41: 10.53333333 | G41: 9647.2 | K41: 0.296944526 | L41: =VLOOKUP(G41,'Gas Prop'!$A$23:$J$15002,9) -> 3266527517 | M41: =VLOOKUP(G41,'Gas Prop'!$A$23:$J$15002,10) -> 814281441.4
A42: 2009-09-27 | B42: 9140.040955 | C42: 306102.928 | E42: 1 | F42: 10.53333333 | G42: 9636.666667 | K42: 0.306102928 | L42: =VLOOKUP(G42,'Gas Prop'!$A$23:$J$15002,9) -> 3261498631 | M42: =VLOOKUP(G42,'Gas Prop'!$A$23:$J$15002,10) -> 810214507.9
A43: 2009-09-28 | B43: 9104.718664 | C43: 315225.1742 | E43: 1 | F43: 10.53333333 | G43: 9626.133333 | K43: 0.3152251742 | L43: =VLOOKUP(G43,'Gas Prop'!$A$23:$J$15002,9) -> 3256927111 | M43: =VLOOKUP(G43,'Gas Prop'!$A$23:$J$15002,10) -> 806533720.8
A44: 2009-09-29 | B44: 9070.91401 | C44: 324312.8709 | E44: 1 | F44: 10.53333333 | G44: 9615.6 | K44: 0.3243128709 | L44: =VLOOKUP(G44,'Gas Prop'!$A$23:$J$15002,9) -> 3251898654 | M44: =VLOOKUP(G44,'Gas Prop'!$A$23:$J$15002,10) -> 802502843.2
A45: 2009-09-30 | B45: 9038.47147 | C45: 333367.456 | E45: 1 | F45: 10.53333333 | G45: 9605.066667 | K45: 0.333367456 | L45: =VLOOKUP(G45,'Gas Prop'!$A$23:$J$15002,9) -> 3247327528 | M45: =VLOOKUP(G45,'Gas Prop'!$A$23:$J$15002,10) -> 798854692.5
A46: 2009-10-01 | B46: 9007.260873 | C46: 342390.2243 | E46: 1 | F46: 10.53333333 | G46: 9594.533333 | K46: 0.3423902243 | L46: =VLOOKUP(G46,'Gas Prop'!$A$23:$J$15002,9) -> 3242299510 | M46: =VLOOKUP(G46,'Gas Prop'!$A$23:$J$15002,10) -> 794859559.8
A47: 2009-10-02 | B47: 8977.173278 | C47: 351382.3519 | E47: 1 | F47: 10.53333333 | G47: 9584 | K47: 0.3513823519 | L47: =VLOOKUP(G47,'Gas Prop'!$A$23:$J$15002,9) -> 3237728787 | M47: =VLOOKUP(G47,'Gas Prop'!$A$23:$J$15002,10) -> 791243763.9
A48: 2009-10-03 | B48: 8948.114127 | C48: 360344.9135 | E48: 1 | F48: 10.53333333 | G48: 9573.466667 | K48: 0.3603449135 | L48: =VLOOKUP(G48,'Gas Prop'!$A$23:$J$15002,9) -> 3232701219 | M48: =VLOOKUP(G48,'Gas Prop'!$A$23:$J$15002,10) -> 787284067.6
A49: 2009-10-04 | B49: 8920.002013 | C49: 369278.8957 | E49: 1 | F49: 10.53333333 | G49: 9562.933333 | K49: 0.3692788957 | L49: =VLOOKUP(G49,'Gas Prop'!$A$23:$J$15002,9) -> 3227673891 | M49: =VLOOKUP(G49,'Gas Prop'!$A$23:$J$15002,10) -> 783342811
A50: 2009-10-05 | B50: 8892.767761 | C50: 378185.2101 | E50: 1 | F50: 10.53333333 | G50: 9552.4 | K50: 0.3781852101 | L50: =VLOOKUP(G50,'Gas Prop'!$A$23:$J$15002,9) -> 3223103803 | M50: =VLOOKUP(G50,'Gas Prop'!$A$23:$J$15002,10) -> 779775781.7
A51: 2009-10-06 | B51: 8866.350589 | C51: 387064.7035 | E51: 1 | F51: 10.53333333 | G51: 9541.866667 | K51: 0.3870647035 | L51: =VLOOKUP(G51,'Gas Prop'!$A$23:$J$15002,9) -> 3218076942 | M51: =VLOOKUP(G51,'Gas Prop'!$A$23:$J$15002,10) -> 775869496.6
A52: 2009-10-07 | B52: 8840.696261 | C52: 395918.1654 | E52: 1 | F52: 10.53333333 | G52: 9531.333333 | K52: 0.3959181654 | L52: =VLOOKUP(G52,'Gas Prop'!$A$23:$J$15002,9) -> 3213507283 | M52: =VLOOKUP(G52,'Gas Prop'!$A$23:$J$15002,10) -> 772334122.1
A53: 2009-10-08 | B53: 8815.757259 | C53: 404746.3344 | D53: 2009-10-08 | E53: 1 | F53: =VLOOKUP(D53,$P$6:$T$26,5,FALSE) -> 10.4 | G53: 9520.933333 | K53: 0.4047463344 | L53: =VLOOKUP(G53,'Gas Prop'!$A$23:$J$15002,9) -> 3208480899 | M53: =VLOOKUP(G53,'Gas Prop'!$A$23:$J$15002,10) -> 768462506.8
A54: 2009-10-09 | B54: 8775.687941 | C54: 413540.9146 | E54: 1 | F54: 10.4 | G54: 9510.533333 | K54: 0.4135409146 | L54: =VLOOKUP(G54,'Gas Prop'!$A$23:$J$15002,9) -> 3203911680 | M54: =VLOOKUP(G54,'Gas Prop'!$A$23:$J$15002,10) -> 764958513.9
A55: 2009-10-10 | B55: 8741.318895 | C55: 422299.21 | E55: 1 | F55: 10.4 | G55: 9500.133333 | K55: 0.42229921 | L55: =VLOOKUP(G55,'Gas Prop'!$A$23:$J$15002,9) -> 3199342673 | M55: =VLOOKUP(G55,'Gas Prop'!$A$23:$J$15002,10) -> 761469369.4
A56: 2009-10-11 | B56: 8708.910501 | C56: 431024.1942 | E56: 1 | F56: 10.4 | G56: 9489.733333 | K56: 0.4310241942 | L56: =VLOOKUP(G56,'Gas Prop'!$A$23:$J$15002,9) -> 3194317014 | M56: =VLOOKUP(G56,'Gas Prop'!$A$23:$J$15002,10) -> 757648387.2
A57: 2009-10-12 | B57: 8677.870323 | C57: 439717.4842 | E57: 1 | F57: 10.4 | G57: 9479.333333 | K57: 0.4397174842 | L57: =VLOOKUP(G57,'Gas Prop'!$A$23:$J$15002,9) -> 3189748461 | M57: =VLOOKUP(G57,'Gas Prop'!$A$23:$J$15002,10) -> 754190225.4
A58: 2009-10-13 | B58: 8647.930362 | C58: 448380.3004 | E58: 1 | F58: 10.4 | G58: 9468.933333 | K58: 0.4483803004 | L58: =VLOOKUP(G58,'Gas Prop'!$A$23:$J$15002,9) -> 3184723308 | M58: =VLOOKUP(G58,'Gas Prop'!$A$23:$J$15002,10) -> 750403176.9
A59: 2009-10-14 | B59: 8618.934286 | C59: 457013.659 | E59: 1 | F59: 10.4 | G59: 9458.533333 | K59: 0.457013659 | L59: =VLOOKUP(G59,'Gas Prop'!$A$23:$J$15002,9) -> 3180155220 | M59: =VLOOKUP(G59,'Gas Prop'!$A$23:$J$15002,10) -> 746975730.5
A60: 2009-10-15 | B60: 8590.777012 | C60: 465618.4483 | E60: 1 | F60: 10.4 | G60: 9448.133333 | K60: 0.4656184483 | L60: =VLOOKUP(G60,'Gas Prop'!$A$23:$J$15002,9) -> 3175587357 | M60: =VLOOKUP(G60,'Gas Prop'!$A$23:$J$15002,10) -> 743562817.1
A61: 2009-10-16 | B61: 8563.381061 | C61: 474195.4666 | E61: 1 | F61: 10.4 | G61: 9437.733333 | K61: 0.4741954666 | L61: =VLOOKUP(G61,'Gas Prop'!$A$23:$J$15002,9) -> 3170562970 | M61: =VLOOKUP(G61,'Gas Prop'!$A$23:$J$15002,10) -> 739825326.6
A62: 2009-10-17 | B62: 8536.685822 | C62: 482745.4439 | E62: 1 | F62: 10.4 | G62: 9427.333333 | K62: 0.4827454439 | L62: =VLOOKUP(G62,'Gas Prop'!$A$23:$J$15002,9) -> 3165995586 | M62: =VLOOKUP(G62,'Gas Prop'!$A$23:$J$15002,10) -> 736442738.1
A63: 2009-10-18 | B63: 8510.642175 | C63: 491269.0554 | E63: 1 | F63: 10.4 | G63: 9416.933333 | K63: 0.4912690554 | L63: =VLOOKUP(G63,'Gas Prop'!$A$23:$J$15002,9) -> 3160971733 | M63: =VLOOKUP(G63,'Gas Prop'!$A$23:$J$15002,10) -> 732738460.8
A64: 2009-10-19 | B64: 8485.209492 | C64: 499766.9318 | E64: 1 | F64: 10.4 | G64: 9406.533333 | K64: 0.4997669318 | L64: =VLOOKUP(G64,'Gas Prop'!$A$23:$J$15002,9) -> 3156404840 | M64: =VLOOKUP(G64,'Gas Prop'!$A$23:$J$15002,10) -> 729385935.5
A65: 2009-10-20 | B65: 8460.353401 | C65: 508239.6665 | E65: 1 | F65: 10.4 | G65: 9396.133333 | K65: 0.5082396665 | L65: =VLOOKUP(G65,'Gas Prop'!$A$23:$J$15002,9) -> 3151838184 | M65: =VLOOKUP(G65,'Gas Prop'!$A$23:$J$15002,10) -> 726047634.7
A66: 2009-10-21 | B66: 8436.044191 | C66: 516687.8209 | E66: 1 | F66: 10.4 | G66: 9385.733333 | K66: 0.5166878209 | L66: =VLOOKUP(G66,'Gas Prop'!$A$23:$J$15002,9) -> 3146815139 | M66: =VLOOKUP(G66,'Gas Prop'!$A$23:$J$15002,10) -> 722391863.1
A67: 2009-10-22 | B67: 8412.255877 | C67: 525111.9285 | E67: 1 | F67: 10.4 | G67: 9375.333333 | K67: 0.5251119285 | L67: =VLOOKUP(G67,'Gas Prop'!$A$23:$J$15002,9) -> 3142248989 | M67: =VLOOKUP(G67,'Gas Prop'!$A$23:$J$15002,10) -> 719083243.2
A68: 2009-10-23 | B68: 8388.965611 | C68: 533512.4986 | E68: 1 | F68: 10.4 | G68: 9364.933333 | K68: 0.5335124986 | L68: =VLOOKUP(G68,'Gas Prop'!$A$23:$J$15002,9) -> 3137226507 | M68: =VLOOKUP(G68,'Gas Prop'!$A$23:$J$15002,10) -> 715459979.5
A69: 2009-10-24 | B69: 8366.153274 | C69: 541890.019 | E69: 1 | F69: 10.4 | G69: 9354.533333 | K69: 0.541890019 | L69: =VLOOKUP(G69,'Gas Prop'!$A$23:$J$15002,9) -> 3132660874 | M69: =VLOOKUP(G69,'Gas Prop'!$A$23:$J$15002,10) -> 712180784.5
A70: 2009-10-25 | B70: 8343.801074 | C70: 550244.9585 | E70: 1 | F70: 10.4 | G70: 9344.133333 | K70: 0.5502449585 | L70: =VLOOKUP(G70,'Gas Prop'!$A$23:$J$15002,9) -> 3128095491 | M70: =VLOOKUP(G70,'Gas Prop'!$A$23:$J$15002,10) -> 708915511.8
A71: 2009-10-26 | B71: 8321.893103 | C71: 558577.7692 | D71: =IF(A71=(VLOOKUP(A71,$P$6:$P$28,1,FALSE)),A71) ->  | E71: 1 | F71: 10.4 | G71: 9333.733333 | K71: =C71/1000000 -> 0.5585777692 | L71: =VLOOKUP(G71,'Gas Prop'!$A$23:$J$15002,9) -> 3123073860 | M71: =VLOOKUP(G71,'Gas Prop'!$A$23:$J$15002,10) -> 705339723.8
A72: 2009-10-27 | B72: 8300.414887 | C72: 566888.888 | E72: =A72-A71 -> 1 | F72: 10.4 | G72: =G71-(E72*F72) -> 9323.333333 | K72: 0.566888888 | L72: =VLOOKUP(G72,'Gas Prop'!$A$23:$J$15002,9) -> 3118509010 | M72: =VLOOKUP(G72,'Gas Prop'!$A$23:$J$15002,10) -> 702103501.9
A73: 2009-10-28 | B73: 8279.353036 | C73: 575178.7378 | E73: 1 | F73: 10.4 | G73: 9312.933333 | K73: 0.5751787378 | L73: =VLOOKUP(G73,'Gas Prop'!$A$23:$J$15002,9) -> 3113487971 | M73: =VLOOKUP(G73,'Gas Prop'!$A$23:$J$15002,10) -> 698559531.5
A74: 2009-10-29 | B74: 8258.695172 | C74: 583447.7287 | E74: 1 | F74: 10.4 | G74: 9302.533333 | K74: 0.5834477287 | L74: =VLOOKUP(G74,'Gas Prop'!$A$23:$J$15002,9) -> 3108923664 | M74: =VLOOKUP(G74,'Gas Prop'!$A$23:$J$15002,10) -> 695352109.4
A75: 2009-10-30 | B75: 8238.429794 | C75: 591696.2589 | E75: 1 | F75: 10.4 | G75: 9292.133333 | K75: 0.5916962589 | L75: =VLOOKUP(G75,'Gas Prop'!$A$23:$J$15002,9) -> 3104359620 | M75: =VLOOKUP(G75,'Gas Prop'!$A$23:$J$15002,10) -> 692158314.2
A76: 2009-10-31 | B76: 8218.546144 | C76: 599924.7155 | E76: 1 | F76: 10.4 | G76: 9281.733333 | K76: 0.5999247155 | L76: =VLOOKUP(G76,'Gas Prop'!$A$23:$J$15002,9) -> 3099339477 | M76: =VLOOKUP(G76,'Gas Prop'!$A$23:$J$15002,10) -> 688660811.3
A77: 2009-11-01 | B77: 8199.034189 | C77: 608133.4751 | E77: 1 | F77: 10.4 | G77: 9271.333333 | K77: 0.6081334751 | L77: =VLOOKUP(G77,'Gas Prop'!$A$23:$J$15002,9) -> 3094775992 | M77: =VLOOKUP(G77,'Gas Prop'!$A$23:$J$15002,10) -> 685495449.8
A78: 2009-11-02 | B78: 8179.884601 | C78: 616322.9047 | E78: 1 | F78: 10.4 | G78: 9260.933333 | K78: 0.6163229047 | L78: =VLOOKUP(G78,'Gas Prop'!$A$23:$J$15002,9) -> 3089756472 | M78: =VLOOKUP(G78,'Gas Prop'!$A$23:$J$15002,10) -> 682029088.7
A79: 2009-11-03 | B79: 8161.088587 | C79: 624493.3622 | E79: 1 | F79: 10.4 | G79: 9250.533333 | K79: 0.6244933622 | L79: =VLOOKUP(G79,'Gas Prop'!$A$23:$J$15002,9) -> 3085193558 | M79: =VLOOKUP(G79,'Gas Prop'!$A$23:$J$15002,10) -> 678891915.5
A80: 2009-11-04 | B80: 8142.637786 | C80: 632645.1969 | E80: 1 | F80: 10.4 | G80: 9240.133333 | K80: 0.6326451969 | L80: =VLOOKUP(G80,'Gas Prop'!$A$23:$J$15002,9) -> 3080630920 | M80: =VLOOKUP(G80,'Gas Prop'!$A$23:$J$15002,10) -> 675768079.7
A81: 2009-11-05 | B81: 8124.52424 | C81: 640778.7502 | E81: 1 | F81: 10.4 | G81: 9229.733333 | K81: 0.6407787502 | L81: =VLOOKUP(G81,'Gas Prop'!$A$23:$J$15002,9) -> 3075612341 | M81: =VLOOKUP(G81,'Gas Prop'!$A$23:$J$15002,10) -> 672347199.3
A82: 2009-11-06 | B82: 8106.740355 | C82: 648894.3553 | E82: 1 | F82: 10.4 | G82: 9219.333333 | K82: 0.6488943553 | L82: =VLOOKUP(G82,'Gas Prop'!$A$23:$J$15002,9) -> 3071050291 | M82: =VLOOKUP(G82,'Gas Prop'!$A$23:$J$15002,10) -> 669251193.4
A83: 2009-11-07 | B83: 8089.278866 | C83: 656992.3383 | D83: 2009-11-07 | E83: 1 | F83: =VLOOKUP(D83,$P$6:$T$26,5,FALSE) -> 0 | G83: 9219.333333 | K83: 0.6569923383 | L83: =VLOOKUP(G83,'Gas Prop'!$A$23:$J$15002,9) -> 3071050291 | M83: =VLOOKUP(G83,'Gas Prop'!$A$23:$J$15002,10) -> 669251193.4
A84: 2009-11-08 | B84: 7896.998525 | C84: 664973.404 | E84: 1 | F84: 0 | G84: 9219.333333 | K84: 0.664973404 | L84: =VLOOKUP(G84,'Gas Prop'!$A$23:$J$15002,9) -> 3071050291 | M84: =VLOOKUP(G84,'Gas Prop'!$A$23:$J$15002,10) -> 669251193.4
A85: 2009-11-09 | B85: 7761.099057 | C85: 672800.6964 | E85: 1 | F85: 0 | G85: 9219.333333 | K85: 0.6728006964 | L85: =VLOOKUP(G85,'Gas Prop'!$A$23:$J$15002,9) -> 3071050291 | M85: =VLOOKUP(G85,'Gas Prop'!$A$23:$J$15002,10) -> 669251193.4
A86: 2009-11-10 | B86: 7640.516476 | C86: 680500.5777 | E86: 1 | F86: 0 | G86: 9219.333333 | K86: 0.6805005777 | L86: =VLOOKUP(G86,'Gas Prop'!$A$23:$J$15002,9) -> 3071050291 | M86: =VLOOKUP(G86,'Gas Prop'!$A$23:$J$15002,10) -> 669251193.4
A87: 2009-11-11 | B87: 7529.0139 | C87: 688084.7247 | E87: 1 | F87: 0 | G87: 9219.333333 | K87: 0.6880847247 | L87: =VLOOKUP(G87,'Gas Prop'!$A$23:$J$15002,9) -> 3071050291 | M87: =VLOOKUP(G87,'Gas Prop'!$A$23:$J$15002,10) -> 669251193.4
A88: 2009-11-12 | B88: 7423.914757 | C88: 695560.7281 | E88: 1 | F88: 0 | G88: 9219.333333 | K88: 0.6955607281 | L88: =VLOOKUP(G88,'Gas Prop'!$A$23:$J$15002,9) -> 3071050291 | M88: =VLOOKUP(G88,'Gas Prop'!$A$23:$J$15002,10) -> 669251193.4
A89: 2009-11-13 | B89: 7323.748644 | C89: 702934.1929 | E89: 1 | F89: 0 | G89: 9219.333333 | K89: 0.7029341929 | L89: =VLOOKUP(G89,'Gas Prop'!$A$23:$J$15002,9) -> 3071050291 | M89: =VLOOKUP(G89,'Gas Prop'!$A$23:$J$15002,10) -> 669251193.4
A90: 2009-11-14 | B90: 7227.59246 | C90: 710209.559 | E90: 1 | F90: 0 | G90: 9219.333333 | K90: 0.710209559 | L90: =VLOOKUP(G90,'Gas Prop'!$A$23:$J$15002,9) -> 3071050291 | M90: =VLOOKUP(G90,'Gas Prop'!$A$23:$J$15002,10) -> 669251193.4
A91: 2009-11-15 | B91: 7134.811621 | C91: 717390.5012 | E91: 1 | F91: 0 | G91: 9219.333333 | K91: 0.7173905012 | L91: =VLOOKUP(G91,'Gas Prop'!$A$23:$J$15002,9) -> 3071050291 | M91: =VLOOKUP(G91,'Gas Prop'!$A$23:$J$15002,10) -> 669251193.4
A92: 2009-11-16 | B92: 7044.94047 | C92: 724480.151 | E92: 1 | F92: 0 | G92: 9219.333333 | K92: 0.724480151 | L92: =VLOOKUP(G92,'Gas Prop'!$A$23:$J$15002,9) -> 3071050291 | M92: =VLOOKUP(G92,'Gas Prop'!$A$23:$J$15002,10) -> 669251193.4
A93: 2009-11-23 | B93: 993.9459939 | C93: 731481.2322 | E93: 7 | F93: 0 | G93: 9219.333333 | K93: 0.7314812322 | L93: =VLOOKUP(G93,'Gas Prop'!$A$23:$J$15002,9) -> 3071050291 | M93: =VLOOKUP(G93,'Gas Prop'!$A$23:$J$15002,10) -> 669251193.4
A94: 2009-11-24 | B94: 3457.41479 | C94: 734949.3221 | E94: 1 | F94: 0 | G94: 9219.333333 | K94: 0.7349493221 | L94: =VLOOKUP(G94,'Gas Prop'!$A$23:$J$15002,9) -> 3071050291 | M94: =VLOOKUP(G94,'Gas Prop'!$A$23:$J$15002,10) -> 669251193.4
A95: 2009-11-25 | B95: 6830.830185 | C95: 741821.9818 | E95: 1 | F95: 0 | G95: 9219.333333 | K95: 0.7418219818 | L95: =VLOOKUP(G95,'Gas Prop'!$A$23:$J$15002,9) -> 3071050291 | M95: =VLOOKUP(G95,'Gas Prop'!$A$23:$J$15002,10) -> 669251193.4
A96: 2009-11-26 | B96: 6748.779855 | C96: 748611.6317 | E96: 1 | F96: 0 | G96: 9219.333333 | K96: 0.7486116317 | L96: =VLOOKUP(G96,'Gas Prop'!$A$23:$J$15002,9) -> 3071050291 | M96: =VLOOKUP(G96,'Gas Prop'!$A$23:$J$15002,10) -> 669251193.4
A97: 2009-11-27 | B97: 6668.512972 | C97: 755320.1356 | E97: 1 | F97: 0 | G97: 9219.333333 | K97: 0.7553201356 | L97: =VLOOKUP(G97,'Gas Prop'!$A$23:$J$15002,9) -> 3071050291 | M97: =VLOOKUP(G97,'Gas Prop'!$A$23:$J$15002,10) -> 669251193.4
A98: 2009-11-28 | B98: 6589.893244 | C98: 761949.2065 | E98: 1 | F98: 0 | G98: 9219.333333 | K98: 0.7619492065 | L98: =VLOOKUP(G98,'Gas Prop'!$A$23:$J$15002,9) -> 3071050291 | M98: =VLOOKUP(G98,'Gas Prop'!$A$23:$J$15002,10) -> 669251193.4
A99: 2009-11-29 | B99: 6512.807393 | C99: 768500.4332 | E99: 1 | F99: 0 | G99: 9219.333333 | K99: 0.7685004332 | L99: =VLOOKUP(G99,'Gas Prop'!$A$23:$J$15002,9) -> 3071050291 | M99: =VLOOKUP(G99,'Gas Prop'!$A$23:$J$15002,10) -> 669251193.4
A100: 2009-11-30 | B100: 6437.160498 | C100: 774975.3008 | E100: 1 | F100: 0 | G100: 9219.333333 | K100: 0.7749753008 | L100: =VLOOKUP(G100,'Gas Prop'!$A$23:$J$15002,9) -> 3071050291 | M100: =VLOOKUP(G100,'Gas Prop'!$A$23:$J$15002,10) -> 669251193.4
A101: 2009-12-01 | B101: 6362.872333 | C101: 781375.207 | E101: 1 | F101: 0 | G101: 9219.333333 | K101: 0.781375207 | L101: =VLOOKUP(G101,'Gas Prop'!$A$23:$J$15002,9) -> 3071050291 | M101: =VLOOKUP(G101,'Gas Prop'!$A$23:$J$15002,10) -> 669251193.4
A102: 2009-12-02 | B102: 6289.87402 | C102: 787701.4753 | E102: 1 | F102: 0 | G102: 9219.333333 | K102: 0.7877014753 | L102: =VLOOKUP(G102,'Gas Prop'!$A$23:$J$15002,9) -> 3071050291 | M102: =VLOOKUP(G102,'Gas Prop'!$A$23:$J$15002,10) -> 669251193.4
A103: 2009-12-03 | B103: 6218.106592 | C103: 793955.3653 | E103: 1 | F103: 0 | G103: 9219.333333 | K103: 0.7939553653 | L103: =VLOOKUP(G103,'Gas Prop'!$A$23:$J$15002,9) -> 3071050291 | M103: =VLOOKUP(G103,'Gas Prop'!$A$23:$J$15002,10) -> 669251193.4
A104: 2009-12-04 | B104: 6147.518268 | C104: 800138.0814 | E104: 1 | F104: 0 | G104: 9219.333333 | K104: 0.8001380814 | L104: =VLOOKUP(G104,'Gas Prop'!$A$23:$J$15002,9) -> 3071050291 | M104: =VLOOKUP(G104,'Gas Prop'!$A$23:$J$15002,10) -> 669251193.4
A105: 2009-12-05 | B105: 6078.063632 | C105: 806250.7796 | E105: 1 | F105: 0 | G105: 9219.333333 | K105: 0.8062507796 | L105: =VLOOKUP(G105,'Gas Prop'!$A$23:$J$15002,9) -> 3071050291 | M105: =VLOOKUP(G105,'Gas Prop'!$A$23:$J$15002,10) -> 669251193.4
A106: 2009-12-06 | B106: 6009.702671 | C106: 812294.5732 | E106: 1 | F106: 0 | G106: 9219.333333 | K106: 0.8122945732 | L106: =VLOOKUP(G106,'Gas Prop'!$A$23:$J$15002,9) -> 3071050291 | M106: =VLOOKUP(G106,'Gas Prop'!$A$23:$J$15002,10) -> 669251193.4
A107: 2009-12-07 | B107: 5942.399246 | C107: 818270.5374 | E107: 1 | F107: 0 | G107: 9219.333333 | K107: 0.8182705374 | L107: =VLOOKUP(G107,'Gas Prop'!$A$23:$J$15002,9) -> 3071050291 | M107: =VLOOKUP(G107,'Gas Prop'!$A$23:$J$15002,10) -> 669251193.4
A108: 2009-12-08 | B108: 5876.120798 | C108: 824179.7133 | E108: 1 | F108: 0 | G108: 9219.333333 | K108: 0.8241797133 | L108: =VLOOKUP(G108,'Gas Prop'!$A$23:$J$15002,9) -> 3071050291 | M108: =VLOOKUP(G108,'Gas Prop'!$A$23:$J$15002,10) -> 669251193.4
A109: 2009-12-09 | B109: 5810.838008 | C109: 830023.1109 | E109: 1 | F109: 0 | G109: 9219.333333 | K109: 0.8300231109 | L109: =VLOOKUP(G109,'Gas Prop'!$A$23:$J$15002,9) -> 3071050291 | M109: =VLOOKUP(G109,'Gas Prop'!$A$23:$J$15002,10) -> 669251193.4
A110: 2009-12-10 | B110: 5746.523846 | C110: 835801.7122 | E110: 1 | F110: 0 | G110: 9219.333333 | K110: 0.8358017122 | L110: =VLOOKUP(G110,'Gas Prop'!$A$23:$J$15002,9) -> 3071050291 | M110: =VLOOKUP(G110,'Gas Prop'!$A$23:$J$15002,10) -> 669251193.4
A111: 2009-12-11 | B111: 5683.153238 | C111: 841516.4731 | E111: 1 | F111: 0 | G111: 9219.333333 | K111: 0.8415164731 | L111: =VLOOKUP(G111,'Gas Prop'!$A$23:$J$15002,9) -> 3071050291 | M111: =VLOOKUP(G111,'Gas Prop'!$A$23:$J$15002,10) -> 669251193.4
A112: 2009-12-12 | B112: 5620.703023 | C112: 847168.3254 | E112: 1 | F112: 0 | G112: 9219.333333 | K112: 0.8471683254 | L112: =VLOOKUP(G112,'Gas Prop'!$A$23:$J$15002,9) -> 3071050291 | M112: =VLOOKUP(G112,'Gas Prop'!$A$23:$J$15002,10) -> 669251193.4
A113: 2009-12-13 | B113: 5559.151677 | C113: 852758.1787 | D113: 2009-12-13 | E113: 1 | F113: =VLOOKUP(D113,$P$6:$T$26,5,FALSE) -> 10.8 | G113: 9208.533333 | K113: 0.8527581787 | L113: =VLOOKUP(G113,'Gas Prop'!$A$23:$J$15002,9) -> 3066032363 | M113: =VLOOKUP(G113,'Gas Prop'!$A$23:$J$15002,10) -> 665860793.5
A114: 2009-12-14 | B114: 5669.222656 | C114: 858384.0295 | E114: 1 | F114: 10.8 | G114: 9197.733333 | K114: 0.8583840295 | L114: =VLOOKUP(G114,'Gas Prop'!$A$23:$J$15002,9) -> 3061014783 | M114: =VLOOKUP(G114,'Gas Prop'!$A$23:$J$15002,10) -> 662486254.4
A115: 2009-12-15 | B115: 5725.534671 | C115: 864083.0223 | E115: 1 | F115: 10.8 | G115: 9186.933333 | K115: 0.8640830223 | L115: =VLOOKUP(G115,'Gas Prop'!$A$23:$J$15002,9) -> 3055997553 | M115: =VLOOKUP(G115,'Gas Prop'!$A$23:$J$15002,10) -> 659127504.3
A116: 2009-12-16 | B116: 5768.078005 | C116: 869830.636 | E116: 1 | F116: 10.8 | G116: 9176.133333 | K116: 0.869830636 | L116: =VLOOKUP(G116,'Gas Prop'!$A$23:$J$15002,9) -> 3051436742 | M116: =VLOOKUP(G116,'Gas Prop'!$A$23:$J$15002,10) -> 656087736
A117: 2009-12-17 | B117: 5802.90655 | C117: 875616.6372 | E117: 1 | F117: 10.8 | G117: 9165.333333 | K117: 0.8756166372 | L117: =VLOOKUP(G117,'Gas Prop'!$A$23:$J$15002,9) -> 3046420190 | M117: =VLOOKUP(G117,'Gas Prop'!$A$23:$J$15002,10) -> 652758930
A118: 2009-12-18 | B118: 5832.605419 | C118: 881434.7508 | E118: 1 | F118: 10.8 | G118: 9154.533333 | K118: 0.8814347508 | L118: =VLOOKUP(G118,'Gas Prop'!$A$23:$J$15002,9) -> 3041403999 | M118: =VLOOKUP(G118,'Gas Prop'!$A$23:$J$15002,10) -> 649445705.7
A119: 2009-12-19 | B119: 5858.585346 | C119: 887280.6139 | E119: 1 | F119: 10.8 | G119: 9143.733333 | K119: 0.8872806139 | L119: =VLOOKUP(G119,'Gas Prop'!$A$23:$J$15002,9) -> 3036388172 | M119: =VLOOKUP(G119,'Gas Prop'!$A$23:$J$15002,10) -> 646147992.5
A120: 2009-12-20 | B120: 5881.723804 | C120: 893150.9772 | E120: 1 | F120: 10.8 | G120: 9132.933333 | K120: 0.8931509772 | L120: =VLOOKUP(G120,'Gas Prop'!$A$23:$J$15002,9) -> 3031372713 | M120: =VLOOKUP(G120,'Gas Prop'!$A$23:$J$15002,10) -> 642865720.2
A121: 2009-12-21 | B121: 5902.617264 | C121: 899043.3149 | E121: 1 | F121: 10.8 | G121: 9122.133333 | K121: 0.8990433149 | L121: =VLOOKUP(G121,'Gas Prop'!$A$23:$J$15002,9) -> 3026813526 | M121: =VLOOKUP(G121,'Gas Prop'!$A$23:$J$15002,10) -> 639895176.4
A122: 2009-12-22 | B122: 5921.698201 | C122: 904955.6087 | E122: 1 | F122: 10.8 | G122: 9111.333333 | K122: 0.9049556087 | L122: =VLOOKUP(G122,'Gas Prop'!$A$23:$J$15002,9) -> 3021798778 | M122: =VLOOKUP(G122,'Gas Prop'!$A$23:$J$15002,10) -> 636642188
A123: 2009-12-23 | B123: 5939.294401 | C123: 910886.2172 | E123: 1 | F123: 10.8 | G123: 9100.533333 | K123: 0.9108862172 | L123: =VLOOKUP(G123,'Gas Prop'!$A$23:$J$15002,9) -> 3016784408 | M123: =VLOOKUP(G123,'Gas Prop'!$A$23:$J$15002,10) -> 633404437.8
A124: 2009-12-24 | B124: 5955.661343 | C124: 916833.7883 | E124: 1 | F124: 10.8 | G124: 9089.733333 | K124: 0.9168337883 | L124: =VLOOKUP(G124,'Gas Prop'!$A$23:$J$15002,9) -> 3011770420 | M124: =VLOOKUP(G124,'Gas Prop'!$A$23:$J$15002,10) -> 630181856.7
A125: 2009-12-25 | B125: 5971.001329 | C125: 922797.198 | E125: 1 | F125: 10.8 | G125: 9078.933333 | K125: 0.922797198 | L125: =VLOOKUP(G125,'Gas Prop'!$A$23:$J$15002,9) -> 3006756816 | M125: =VLOOKUP(G125,'Gas Prop'!$A$23:$J$15002,10) -> 626974375.9
A126: 2009-12-26 | B126: 5985.476358 | C126: 928775.503 | E126: 1 | F126: 10.8 | G126: 9068.133333 | K126: 0.928775503 | L126: =VLOOKUP(G126,'Gas Prop'!$A$23:$J$15002,9) -> 3002199332 | M126: =VLOOKUP(G126,'Gas Prop'!$A$23:$J$15002,10) -> 624071530.3
A127: 2009-12-27 | B127: 5999.217097 | C127: 934767.9062 | E127: 1 | F127: 10.8 | G127: 9057.333333 | K127: 0.9347679062 | L127: =VLOOKUP(G127,'Gas Prop'!$A$23:$J$15002,9) -> 2997186474 | M127: =VLOOKUP(G127,'Gas Prop'!$A$23:$J$15002,10) -> 620892687.8
A128: 2009-12-28 | B128: 6012.329285 | C128: 940773.7279 | E128: 1 | F128: 10.8 | G128: 9046.533333 | K128: 0.9407737279 | L128: =VLOOKUP(G128,'Gas Prop'!$A$23:$J$15002,9) -> 2992174012 | M128: =VLOOKUP(G128,'Gas Prop'!$A$23:$J$15002,10) -> 617728747.5
A129: 2009-12-29 | B129: 6024.899283 | C129: 946792.3842 | E129: 1 | F129: 10.8 | G129: 9035.733333 | K129: 0.9467923842 | L129: =VLOOKUP(G129,'Gas Prop'!$A$23:$J$15002,9) -> 2987161949 | M129: =VLOOKUP(G129,'Gas Prop'!$A$23:$J$15002,10) -> 614579641.7
A130: 2009-12-30 | B130: 6036.997622 | C130: 952823.3694 | E130: 1 | F130: 10.8 | G130: 9024.933333 | K130: 0.9528233694 | L130: =VLOOKUP(G130,'Gas Prop'!$A$23:$J$15002,9) -> 2982150289 | M130: =VLOOKUP(G130,'Gas Prop'!$A$23:$J$15002,10) -> 611445303.4
A131: 2009-12-31 | B131: 6048.682359 | C131: 958866.2417 | E131: 1 | F131: 10.8 | G131: 9014.133333 | K131: 0.9588662417 | L131: =VLOOKUP(G131,'Gas Prop'!$A$23:$J$15002,9) -> 2977594588 | M131: =VLOOKUP(G131,'Gas Prop'!$A$23:$J$15002,10) -> 608608663.3
A132: 2010-01-01 | B132: 6060.001822 | C132: 964920.6124 | E132: 1 | F132: 10.8 | G132: 9003.333333 | K132: 0.9649206124 | L132: =VLOOKUP(G132,'Gas Prop'!$A$23:$J$15002,9) -> 2972583708 | M132: =VLOOKUP(G132,'Gas Prop'!$A$23:$J$15002,10) -> 605502331.7
A133: 2010-01-02 | B133: 6070.995835 | C133: 970986.1369 | E133: 1 | F133: 10.8 | G133: 8992.533333 | K133: 0.9709861369 | L133: =VLOOKUP(G133,'Gas Prop'!$A$23:$J$15002,9) -> 2967573242 | M133: =VLOOKUP(G133,'Gas Prop'!$A$23:$J$15002,10) -> 602410573.7
A134: 2010-01-03 | B134: 6081.698177 | C134: 977062.507 | E134: 1 | F134: 10.8 | G134: 8981.733333 | K134: 0.977062507 | L134: =VLOOKUP(G134,'Gas Prop'!$A$23:$J$15002,9) -> 2962563194 | M134: =VLOOKUP(G134,'Gas Prop'!$A$23:$J$15002,10) -> 599333323.2
A135: 2010-01-04 | B135: 6092.137283 | C135: 983149.4456 | D135: =IF(A135=(VLOOKUP(A135,$P$6:$P$28,1,FALSE)),A135) ->  | E135: 1 | F135: 10.8 | G135: 8970.933333 | K135: =C135/1000000 -> 0.9831494456 | L135: =VLOOKUP(G135,'Gas Prop'!$A$23:$J$15002,9) -> 2957553567 | M135: =VLOOKUP(G135,'Gas Prop'!$A$23:$J$15002,10) -> 596270514.4
A136: 2010-01-05 | B136: 6102.336979 | C136: 989246.7017 | E136: =A136-A135 -> 1 | F136: 10.8 | G136: =G135-(E136*F136) -> 8960.133333 | K136: 0.9892467017 | L136: =VLOOKUP(G136,'Gas Prop'!$A$23:$J$15002,9) -> 2952999729 | M136: =VLOOKUP(G136,'Gas Prop'!$A$23:$J$15002,10) -> 593498619.8
A137: 2010-01-06 | B137: 6112.317879 | C137: 995354.0466 | E137: 1 | F137: 10.8 | G137: 8949.333333 | K137: 0.9953540466 | L137: =VLOOKUP(G137,'Gas Prop'!$A$23:$J$15002,9) -> 2947990917 | M137: =VLOOKUP(G137,'Gas Prop'!$A$23:$J$15002,10) -> 590463200.2
A138: 2010-01-07 | B138: 6122.097705 | C138: 1001471.271 | E138: 1 | F138: 10.8 | G138: 8938.533333 | K138: 1.001471271 | L138: =VLOOKUP(G138,'Gas Prop'!$A$23:$J$15002,9) -> 2942982538 | M138: =VLOOKUP(G138,'Gas Prop'!$A$23:$J$15002,10) -> 587442032.7
A139: 2010-01-08 | B139: 6131.691526 | C139: 1007598.18 | E139: 1 | F139: 10.8 | G139: 8927.733333 | K139: 1.00759818 | L139: =VLOOKUP(G139,'Gas Prop'!$A$23:$J$15002,9) -> 2937974595 | M139: =VLOOKUP(G139,'Gas Prop'!$A$23:$J$15002,10) -> 584435052.8
A140: 2010-01-09 | B140: 6141.112552 | C140: 1013734.596 | E140: 1 | F140: 10.8 | G140: 8916.933333 | K140: 1.013734596 | L140: =VLOOKUP(G140,'Gas Prop'!$A$23:$J$15002,9) -> 2932967092 | M140: =VLOOKUP(G140,'Gas Prop'!$A$23:$J$15002,10) -> 581442196.1
A141: 2010-01-10 | B141: 6150.372484 | C141: 1019880.351 | E141: 1 | F141: 10.8 | G141: 8906.133333 | K141: 1.019880351 | L141: =VLOOKUP(G141,'Gas Prop'!$A$23:$J$15002,9) -> 2928415201 | M141: =VLOOKUP(G141,'Gas Prop'!$A$23:$J$15002,10) -> 578733619.2
A142: 2010-01-11 | B142: 6159.481533 | C142: 1026035.291 | E142: 1 | F142: 10.8 | G142: 8895.333333 | K142: 1.026035291 | L142: =VLOOKUP(G142,'Gas Prop'!$A$23:$J$15002,9) -> 2923408549 | M142: =VLOOKUP(G142,'Gas Prop'!$A$23:$J$15002,10) -> 575767547.7
A143: 2010-01-12 | B143: 6168.448565 | C143: 1032199.267 | D143: 2010-01-12 | E143: 1 | F143: =VLOOKUP(D143,$P$6:$T$26,5,FALSE) -> 13.06666667 | G143: 8882.266667 | K143: 1.032199267 | L143: =VLOOKUP(G143,'Gas Prop'!$A$23:$J$15002,9) -> 2917492179 | M143: =VLOOKUP(G143,'Gas Prop'!$A$23:$J$15002,10) -> 572280155
A144: 2010-01-13 | B144: 6197.215539 | C144: 1038383.48 | E144: 1 | F144: 13.06666667 | G144: 8869.2 | K144: 1.03838348 | L144: =VLOOKUP(G144,'Gas Prop'!$A$23:$J$15002,9) -> 2911576446 | M144: =VLOOKUP(G144,'Gas Prop'!$A$23:$J$15002,10) -> 568812124.9
A145: 2010-01-14 | B145: 6219.479019 | C145: 1044592.034 | E145: 1 | F145: 13.06666667 | G145: 8856.133333 | K145: 1.044592034 | L145: =VLOOKUP(G145,'Gas Prop'!$A$23:$J$15002,9) -> 2905661357 | M145: =VLOOKUP(G145,'Gas Prop'!$A$23:$J$15002,10) -> 565363353.8
A146: 2010-01-15 | B146: 6239.915753 | C146: 1050821.844 | E146: 1 | F146: 13.06666667 | G146: 8843.066667 | K146: 1.050821844 | L146: =VLOOKUP(G146,'Gas Prop'!$A$23:$J$15002,9) -> 2899746917 | M146: =VLOOKUP(G146,'Gas Prop'!$A$23:$J$15002,10) -> 561933738.7
A147: 2010-01-16 | B147: 6259.240258 | C147: 1057071.499 | E147: 1 | F147: 13.06666667 | G147: 8830 | K147: 1.057071499 | L147: =VLOOKUP(G147,'Gas Prop'!$A$23:$J$15002,9) -> 2893833134 | M147: =VLOOKUP(G147,'Gas Prop'!$A$23:$J$15002,10) -> 558523176.8
A148: 2010-01-17 | B148: 6277.761351 | C148: 1063340.058 | E148: 1 | F148: 13.06666667 | G148: 8816.933333 | K148: 1.063340058 | L148: =VLOOKUP(G148,'Gas Prop'!$A$23:$J$15002,9) -> 2887465186 | M148: =VLOOKUP(G148,'Gas Prop'!$A$23:$J$15002,10) -> 554871455.2
A149: 2010-01-18 | B149: 6295.650262 | C149: 1069626.811 | E149: 1 | F149: 13.06666667 | G149: 8803.866667 | K149: 1.069626811 | L149: =VLOOKUP(G149,'Gas Prop'!$A$23:$J$15002,9) -> 2881552788 | M149: =VLOOKUP(G149,'Gas Prop'!$A$23:$J$15002,10) -> 551500140.2
A150: 2010-01-19 | B150: 6313.015424 | C150: 1075931.184 | E150: 1 | F150: 13.06666667 | G150: 8790.8 | K150: 1.075931184 | L150: =VLOOKUP(G150,'Gas Prop'!$A$23:$J$15002,9) -> 2875641067 | M150: =VLOOKUP(G150,'Gas Prop'!$A$23:$J$15002,10) -> 548147566.3
A151: 2010-01-20 | B151: 6329.931906 | C151: 1082252.693 | E151: 1 | F151: 13.06666667 | G151: 8777.733333 | K151: 1.082252693 | L151: =VLOOKUP(G151,'Gas Prop'!$A$23:$J$15002,9) -> 2869730029 | M151: =VLOOKUP(G151,'Gas Prop'!$A$23:$J$15002,10) -> 544813633.2
A152: 2010-01-21 | B152: 6346.455137 | C152: 1088590.917 | E152: 1 | F152: 13.06666667 | G152: 8764.666667 | K152: 1.088590917 | L152: =VLOOKUP(G152,'Gas Prop'!$A$23:$J$15002,9) -> 2863819682 | M152: =VLOOKUP(G152,'Gas Prop'!$A$23:$J$15002,10) -> 541498241
A153: 2010-01-22 | B153: 6362.627969 | C153: 1094945.486 | E153: 1 | F153: 13.06666667 | G153: 8751.6 | K153: 1.094945486 | L153: =VLOOKUP(G153,'Gas Prop'!$A$23:$J$15002,9) -> 2857910031 | M153: =VLOOKUP(G153,'Gas Prop'!$A$23:$J$15002,10) -> 538201290.5
A154: 2010-01-23 | B154: 6378.484599 | C154: 1101316.068 | E154: 1 | F154: 13.06666667 | G154: 8738.533333 | K154: 1.101316068 | L154: =VLOOKUP(G154,'Gas Prop'!$A$23:$J$15002,9) -> 2852001085 | M154: =VLOOKUP(G154,'Gas Prop'!$A$23:$J$15002,10) -> 534922682.8
A155: 2010-01-24 | B155: 6394.052845 | C155: 1107702.359 | E155: 1 | F155: 13.06666667 | G155: 8725.466667 | K155: 1.107702359 | L155: =VLOOKUP(G155,'Gas Prop'!$A$23:$J$15002,9) -> 2846092849 | M155: =VLOOKUP(G155,'Gas Prop'!$A$23:$J$15002,10) -> 531662319.7
A156: 2010-01-25 | B156: 6409.355655 | C156: 1114104.085 | E156: 1 | F156: 13.06666667 | G156: 8712.4 | K156: 1.114104085 | L156: =VLOOKUP(G156,'Gas Prop'!$A$23:$J$15002,9) -> 2840185331 | M156: =VLOOKUP(G156,'Gas Prop'!$A$23:$J$15002,10) -> 528420103.6
A157: 2010-01-26 | B157: 6424.412079 | C157: 1120520.989 | E157: 1 | F157: 13.06666667 | G157: 8699.333333 | K157: 1.120520989 | L157: =VLOOKUP(G157,'Gas Prop'!$A$23:$J$15002,9) -> 2834278538 | M157: =VLOOKUP(G157,'Gas Prop'!$A$23:$J$15002,10) -> 525195937.2
A158: 2010-01-27 | B158: 6439.2381 | C158: 1126952.832 | E158: 1 | F158: 13.06666667 | G158: 8686.266667 | K158: 1.126952832 | L158: =VLOOKUP(G158,'Gas Prop'!$A$23:$J$15002,9) -> 2828372476 | M158: =VLOOKUP(G158,'Gas Prop'!$A$23:$J$15002,10) -> 521989723.9
A159: 2010-01-28 | B159: 6453.847181 | C159: 1133399.393 | E159: 1 | F159: 13.06666667 | G159: 8673.2 | K159: 1.133399393 | L159: =VLOOKUP(G159,'Gas Prop'!$A$23:$J$15002,9) -> 2822467152 | M159: =VLOOKUP(G159,'Gas Prop'!$A$23:$J$15002,10) -> 518801367.5
A160: 2010-01-29 | B160: 6468.250848 | C160: 1139860.458 | E160: 1 | F160: 13.06666667 | G160: 8660.133333 | K160: 1.139860458 | L160: =VLOOKUP(G160,'Gas Prop'!$A$23:$J$15002,9) -> 2816562574 | M160: =VLOOKUP(G160,'Gas Prop'!$A$23:$J$15002,10) -> 515630772.3
A161: 2010-01-30 | B161: 6482.45898 | C161: 1146335.829 | E161: 1 | F161: 13.06666667 | G161: 8647.066667 | K161: 1.146335829 | L161: =VLOOKUP(G161,'Gas Prop'!$A$23:$J$15002,9) -> 2810658749 | M161: =VLOOKUP(G161,'Gas Prop'!$A$23:$J$15002,10) -> 512477843.3
A162: 2010-01-31 | B162: 6496.480221 | C162: 1152825.314 | E162: 1 | F162: 13.06666667 | G162: 8634 | K162: 1.152825314 | L162: =VLOOKUP(G162,'Gas Prop'!$A$23:$J$15002,9) -> 2804755683 | M162: =VLOOKUP(G162,'Gas Prop'!$A$23:$J$15002,10) -> 509342485.8
A163: 2010-02-01 | B163: 6510.3221 | C163: 1159328.73 | E163: 1 | F163: 13.06666667 | G163: 8620.933333 | K163: 1.15932873 | L163: =VLOOKUP(G163,'Gas Prop'!$A$23:$J$15002,9) -> 2798399392 | M163: =VLOOKUP(G163,'Gas Prop'!$A$23:$J$15002,10) -> 505985490.1
A164: 2010-02-02 | B164: 6523.991248 | C164: 1165845.901 | E164: 1 | F164: 13.06666667 | G164: 8607.866667 | K164: 1.165845901 | L164: =VLOOKUP(G164,'Gas Prop'!$A$23:$J$15002,9) -> 2792497927 | M164: =VLOOKUP(G164,'Gas Prop'!$A$23:$J$15002,10) -> 502886327.1
A165: 2010-02-03 | B165: 6537.493587 | C165: 1172376.657 | E165: 1 | F165: 13.06666667 | G165: 8594.8 | K165: 1.172376657 | L165: =VLOOKUP(G165,'Gas Prop'!$A$23:$J$15002,9) -> 2786597242 | M165: =VLOOKUP(G165,'Gas Prop'!$A$23:$J$15002,10) -> 499804447.7
A166: 2010-02-04 | B166: 6550.834374 | C166: 1178920.834 | E166: 1 | F166: 13.06666667 | G166: 8581.733333 | K166: 1.178920834 | L166: =VLOOKUP(G166,'Gas Prop'!$A$23:$J$15002,9) -> 2780697347 | M166: =VLOOKUP(G166,'Gas Prop'!$A$23:$J$15002,10) -> 496739759.2
A167: 2010-02-05 | B167: 6564.018372 | C167: 1185478.273 | E167: 1 | F167: 13.06666667 | G167: 8568.666667 | K167: 1.185478273 | L167: =VLOOKUP(G167,'Gas Prop'!$A$23:$J$15002,9) -> 2774798248 | M167: =VLOOKUP(G167,'Gas Prop'!$A$23:$J$15002,10) -> 493692169.6
A168: 2010-02-06 | B168: 6577.049959 | C168: 1192048.82 | E168: 1 | F168: 13.06666667 | G168: 8555.6 | K168: 1.19204882 | L168: =VLOOKUP(G168,'Gas Prop'!$A$23:$J$15002,9) -> 2768899952 | M168: =VLOOKUP(G168,'Gas Prop'!$A$23:$J$15002,10) -> 490661587.3
A169: 2010-02-07 | B169: 6589.93314 | C169: 1198632.324 | E169: 1 | F169: 13.06666667 | G169: 8542.533333 | K169: 1.198632324 | L169: =VLOOKUP(G169,'Gas Prop'!$A$23:$J$15002,9) -> 2763002467 | M169: =VLOOKUP(G169,'Gas Prop'!$A$23:$J$15002,10) -> 487647921.2
A170: 2010-02-08 | B170: 6602.671589 | C170: 1205228.638 | E170: 1 | F170: 13.06666667 | G170: 8529.466667 | K170: 1.205228638 | L170: =VLOOKUP(G170,'Gas Prop'!$A$23:$J$15002,9) -> 2757105800 | M170: =VLOOKUP(G170,'Gas Prop'!$A$23:$J$15002,10) -> 484651080.6
A171: 2010-02-09 | B171: 6615.268736 | C171: 1211837.62 | E171: 1 | F171: 13.06666667 | G171: 8516.4 | K171: 1.21183762 | L171: =VLOOKUP(G171,'Gas Prop'!$A$23:$J$15002,9) -> 2751209958 | M171: =VLOOKUP(G171,'Gas Prop'!$A$23:$J$15002,10) -> 481670975.4
A172: 2010-02-10 | B172: 6627.727787 | C172: 1218459.129 | E172: 1 | F172: 13.06666667 | G172: 8503.333333 | K172: 1.218459129 | L172: =VLOOKUP(G172,'Gas Prop'!$A$23:$J$15002,9) -> 2745314950 | M172: =VLOOKUP(G172,'Gas Prop'!$A$23:$J$15002,10) -> 478707516
A173: 2010-02-11 | B173: 6640.051726 | C173: 1225093.03 | D173: 2010-02-11 | E173: 1 | F173: =VLOOKUP(D173,$P$6:$T$26,5,FALSE) -> 9.866666667 | G173: 8493.466667 | K173: 1.22509303 | L173: =VLOOKUP(G173,'Gas Prop'!$A$23:$J$15002,9) -> 2740780899 | M173: =VLOOKUP(G173,'Gas Prop'!$A$23:$J$15002,10) -> 476439202.8
A174: 2010-02-12 | B174: 6599.139996 | C174: 1231708.989 | E174: 1 | F174: 9.866666667 | G174: 8483.6 | K174: 1.231708989 | L174: =VLOOKUP(G174,'Gas Prop'!$A$23:$J$15002,9) -> 2736247350 | M174: =VLOOKUP(G174,'Gas Prop'!$A$23:$J$15002,10) -> 474180646
A175: 2010-02-13 | B175: 6575.084056 | C175: 1238295.587 | E175: 1 | F175: 9.866666667 | G175: 8473.733333 | K175: 1.238295587 | L175: =VLOOKUP(G175,'Gas Prop'!$A$23:$J$15002,9) -> 2731714304 | M175: =VLOOKUP(G175,'Gas Prop'!$A$23:$J$15002,10) -> 471931805.4
A176: 2010-02-14 | B176: 6555.446322 | C176: 1244860.59 | E176: 1 | F176: 9.866666667 | G176: 8463.866667 | K176: 1.24486059 | L176: =VLOOKUP(G176,'Gas Prop'!$A$23:$J$15002,9) -> 2727181766 | M176: =VLOOKUP(G176,'Gas Prop'!$A$23:$J$15002,10) -> 469692640.8
A177: 2010-02-15 | B177: 6538.340233 | C177: 1251407.314 | E177: 1 | F177: 9.866666667 | G177: 8454 | K177: 1.251407314 | L177: =VLOOKUP(G177,'Gas Prop'!$A$23:$J$15002,9) -> 2723102919 | M177: =VLOOKUP(G177,'Gas Prop'!$A$23:$J$15002,10) -> 467685632.9
A178: 2010-02-16 | B178: 6522.958547 | C178: 1257937.842 | E178: 1 | F178: 9.866666667 | G178: 8444.133333 | K178: 1.257937842 | L178: =VLOOKUP(G178,'Gas Prop'!$A$23:$J$15002,9) -> 2718571355 | M178: =VLOOKUP(G178,'Gas Prop'!$A$23:$J$15002,10) -> 465464743.1
A179: 2010-02-17 | B179: 6508.859414 | C179: 1264453.657 | E179: 1 | F179: 9.866666667 | G179: 8434.266667 | K179: 1.264453657 | L179: =VLOOKUP(G179,'Gas Prop'!$A$23:$J$15002,9) -> 2714040309 | M179: =VLOOKUP(G179,'Gas Prop'!$A$23:$J$15002,10) -> 463253414.2
A180: 2010-02-18 | B180: 6495.767331 | C180: 1270955.896 | E180: 1 | F180: 9.866666667 | G180: 8424.4 | K180: 1.270955896 | L180: =VLOOKUP(G180,'Gas Prop'!$A$23:$J$15002,9) -> 2709509784 | M180: =VLOOKUP(G180,'Gas Prop'!$A$23:$J$15002,10) -> 461051606.8
A181: 2010-02-19 | B181: 6483.494885 | C181: 1277445.465 | E181: 1 | F181: 9.866666667 | G181: 8414.533333 | K181: 1.277445465 | L181: =VLOOKUP(G181,'Gas Prop'!$A$23:$J$15002,9) -> 2704979784 | M181: =VLOOKUP(G181,'Gas Prop'!$A$23:$J$15002,10) -> 458859281.4
A182: 2010-02-20 | B182: 6471.906042 | C182: 1283923.113 | E182: 1 | F182: 9.866666667 | G182: 8404.666667 | K182: 1.283923113 | L182: =VLOOKUP(G182,'Gas Prop'!$A$23:$J$15002,9) -> 2700450312 | M182: =VLOOKUP(G182,'Gas Prop'!$A$23:$J$15002,10) -> 456676399.1
A183: 2010-02-21 | B183: 6460.897317 | C183: 1290389.47 | E183: 1 | F183: 9.866666667 | G183: 8394.8 | K183: 1.29038947 | L183: =VLOOKUP(G183,'Gas Prop'!$A$23:$J$15002,9) -> 2695921372 | M183: =VLOOKUP(G183,'Gas Prop'!$A$23:$J$15002,10) -> 454502921
A184: 2010-02-22 | B184: 6450.387498 | C184: 1296845.074 | E184: 1 | F184: 9.866666667 | G184: 8384.933333 | K184: 1.296845074 | L184: =VLOOKUP(G184,'Gas Prop'!$A$23:$J$15002,9) -> 2691392967 | M184: =VLOOKUP(G184,'Gas Prop'!$A$23:$J$15002,10) -> 452338808.1
A185: 2010-02-23 | B185: 6440.311543 | C185: 1303290.389 | E185: 1 | F185: 9.866666667 | G185: 8375.066667 | K185: 1.303290389 | L185: =VLOOKUP(G185,'Gas Prop'!$A$23:$J$15002,9) -> 2687317864 | M185: =VLOOKUP(G185,'Gas Prop'!$A$23:$J$15002,10) -> 450399081.9
A186: 2010-02-24 | B186: 6430.616694 | C186: 1309725.824 | E186: 1 | F186: 9.866666667 | G186: 8365.2 | K186: 1.309725824 | L186: =VLOOKUP(G186,'Gas Prop'!$A$23:$J$15002,9) -> 2682790486 | M186: =VLOOKUP(G186,'Gas Prop'!$A$23:$J$15002,10) -> 448252656.9
A187: 2010-02-25 | B187: 6421.259895 | C187: 1316151.735 | E187: 1 | F187: 9.866666667 | G187: 8355.333333 | K187: 1.316151735 | L187: =VLOOKUP(G187,'Gas Prop'!$A$23:$J$15002,9) -> 2678263654 | M187: =VLOOKUP(G187,'Gas Prop'!$A$23:$J$15002,10) -> 446115485.6
A188: 2010-02-26 | B188: 6412.205606 | C188: 1322568.444 | E188: 1 | F188: 9.866666667 | G188: 8345.466667 | K188: 1.322568444 | L188: =VLOOKUP(G188,'Gas Prop'!$A$23:$J$15002,9) -> 2673737372 | M188: =VLOOKUP(G188,'Gas Prop'!$A$23:$J$15002,10) -> 443987529.9
A189: 2010-02-27 | B189: 6403.42453 | C189: 1328976.238 | E189: 1 | F189: 9.866666667 | G189: 8335.6 | K189: 1.328976238 | L189: =VLOOKUP(G189,'Gas Prop'!$A$23:$J$15002,9) -> 2669211642 | M189: =VLOOKUP(G189,'Gas Prop'!$A$23:$J$15002,10) -> 441868751.8
A190: 2010-02-28 | B190: 6394.892135 | C190: 1335375.376 | E190: 1 | F190: 9.866666667 | G190: 8325.733333 | K190: 1.335375376 | L190: =VLOOKUP(G190,'Gas Prop'!$A$23:$J$15002,9) -> 2664686469 | M190: =VLOOKUP(G190,'Gas Prop'!$A$23:$J$15002,10) -> 439759113.4
A191: 2010-03-01 | B191: 6386.587965 | C191: 1341766.098 | E191: 1 | F191: 9.866666667 | G191: 8315.866667 | K191: 1.341766098 | L191: =VLOOKUP(G191,'Gas Prop'!$A$23:$J$15002,9) -> 2660161857 | M191: =VLOOKUP(G191,'Gas Prop'!$A$23:$J$15002,10) -> 437658577
A192: 2010-03-02 | B192: 6378.494733 | C192: 1348148.622 | E192: 1 | F192: 9.866666667 | G192: 8306 | K192: 1.348148622 | L192: =VLOOKUP(G192,'Gas Prop'!$A$23:$J$15002,9) -> 2656090188 | M192: =VLOOKUP(G192,'Gas Prop'!$A$23:$J$15002,10) -> 435775845.5
A193: 2010-03-03 | B193: 6370.597691 | C193: 1354523.153 | E193: 1 | F193: 9.866666667 | G193: 8296.133333 | K193: 1.354523153 | L193: =VLOOKUP(G193,'Gas Prop'!$A$23:$J$15002,9) -> 2651566650 | M193: =VLOOKUP(G193,'Gas Prop'!$A$23:$J$15002,10) -> 433692499.6
A194: 2010-03-04 | B194: 6362.884354 | C194: 1360889.879 | E194: 1 | F194: 9.866666667 | G194: 8286.266667 | K194: 1.360889879 | L194: =VLOOKUP(G194,'Gas Prop'!$A$23:$J$15002,9) -> 2647043683 | M194: =VLOOKUP(G194,'Gas Prop'!$A$23:$J$15002,10) -> 431618147.4
A195: 2010-03-05 | B195: 6355.343866 | C195: 1367248.979 | E195: 1 | F195: 9.866666667 | G195: 8276.4 | K195: 1.367248979 | L195: =VLOOKUP(G195,'Gas Prop'!$A$23:$J$15002,9) -> 2642521291 | M195: =VLOOKUP(G195,'Gas Prop'!$A$23:$J$15002,10) -> 429552751.7
A196: 2010-03-06 | B196: 6347.966801 | C196: 1373600.621 | E196: 1 | F196: 9.866666667 | G196: 8266.533333 | K196: 1.373600621 | L196: =VLOOKUP(G196,'Gas Prop'!$A$23:$J$15002,9) -> 2637999478 | M196: =VLOOKUP(G196,'Gas Prop'!$A$23:$J$15002,10) -> 427496275.5
A197: 2010-03-07 | B197: 6340.745026 | C197: 1379944.964 | E197: 1 | F197: 9.866666667 | G197: 8256.666667 | K197: 1.379944964 | L197: =VLOOKUP(G197,'Gas Prop'!$A$23:$J$15002,9) -> 2633478246 | M197: =VLOOKUP(G197,'Gas Prop'!$A$23:$J$15002,10) -> 425448682
A198: 2010-03-08 | B198: 6333.671333 | C198: 1386282.161 | E198: 1 | F198: 9.866666667 | G198: 8246.8 | K198: 1.386282161 | L198: =VLOOKUP(G198,'Gas Prop'!$A$23:$J$15002,9) -> 2628957601 | M198: =VLOOKUP(G198,'Gas Prop'!$A$23:$J$15002,10) -> 423409934.7
A199: 2010-03-09 | B199: 6326.739297 | C199: 1392612.354 | D199: =IF(A199=(VLOOKUP(A199,$P$6:$P$28,1,FALSE)),A199) ->  | E199: 1 | F199: 9.866666667 | G199: 8236.933333 | K199: =C199/1000000 -> 1.392612354 | L199: =VLOOKUP(G199,'Gas Prop'!$A$23:$J$15002,9) -> 2624437545 | M199: =VLOOKUP(G199,'Gas Prop'!$A$23:$J$15002,10) -> 421379997
A200: 2010-03-10 | B200: 6319.94326 | C200: 1398935.684 | E200: =A200-A199 -> 1 | F200: 9.866666667 | G200: =G199-(E200*F200) -> 8227.066667 | K200: 1.398935684 | L200: =VLOOKUP(G200,'Gas Prop'!$A$23:$J$15002,9) -> 2620370003 | M200: =VLOOKUP(G200,'Gas Prop'!$A$23:$J$15002,10) -> 419560555.3
... 1258 more rows
